Workbook

Sheet Rally
A1: Miscellaneous Costs | D1: Camping | I1: Meal - Dinner | K1: Meal - Breakfast | M1: Other Charges
A2: Description | B2: Cost | D2: Cost per Day | E2: 25 | I2: Adult | J2: Child | K2: Adult | L2: Child | M2: Adult | N2: Child
A3: Person taking trailer to Rally | G3: Cost per Person | I3: 5 | J3: 10 | K3: 15 | L3: 20 | M3: 13 | N3: 10
A4: Enter Name of person | B4: 50 | D4: Rig Charge for Trailer Supplies | G4: Gratuity -% | H4: 15 | I4: =I3*$H$4/100 -> 0.75 | J4: =J3*$H$4/100 -> 1.5 | K4: =K3*$H$4/100 -> 2.25 | L4: =L3*$H$4/100 -> 3
A5: Person taking trailer from Rally | E5: 2 | G5: Tax - % | H5: 6 | I5: =I3*$H$5/100 -> 0.3 | J5: =J3*$H$5/100 -> 0.6 | K5: =K3*$H$5/100 -> 0.9 | L5: =L3*$H$5/100 -> 1.2
A6: Enter Name of person | B6: 50 | G6: Total | I6: =SUM(I3:I5) -> 6.05 | J6: 12.1 | K6: 18.15 | L6: 24.2 | M6: 13 | N6: 10
A7: Permanent Buffer | B7: 100
A8: Padding | B8: 150 | D8: CAUTION: CHANGE ONLY AREAS COLORED YELLOW!!!!! | L8: Other Charges can be used for things like Tickets, Craft Purchases, etc.
D13: Rally Month/Location ---- | F13: August - Bloomsburg
D15: Automatic Sorting
E17: Sort for Parking Captian - Hold the "Ctrl" + "Shift" keys then press the letter "P" key. This will sort the "Arrival Date" and the "Name" in A to Z sequence. This should be done prior to printing. The Parking Captain would like this one week prior to the Rally. If you print in PDF format you can email it to him.
E21: Sort for Final Registration - Hold the "Ctrl" + "Shift" keys , then press the letter "R" key. This will sort the "Name" in A to Z sequence. This can be done anytime, but should be done prior to printing for final Registration.

Sheet Rigs
A1: Nr Rigs | B1: Arrival Date | C1: Reason Code | D1: Name | E1: Phone Number | F1: FMCA # | G1: Size | H1: Nr Nights Camping | I1: Nr Adults | J1: Nr Adult Dinners | K1: Nr Child Dinners | L1: Nr Adult Break | M1: Nr Child Break | N1: Nr Adult Other | O1: Nr Child Other | P1: Registration Deposit | Q1: Check Nr | R1: Date of Deposit | S1: Late Fee | U1: Reason Code Table | V1: Description
D2: Totals | I2: =SUM(I3:I101) -> 2 | J2: =SUM(J3:J101) -> 2 | K2: 2 | L2: 2 | M2: 2 | N2: 2 | O2: 2 | P2: =SUM(P3:P101) -> 50
A3: 1 | B3: Fri | C3: C | D3: L Name, F Name | E3: 1234567890 | F3: Fnnnnn | G3: 40 | H3: 2 | I3: 2 | J3: 2 | K3: 2 | L3: 2 | M3: 2 | N3: 2 | O3: 2 | P3: 50 | Q3: 123 | R3: 2018-05-16 | S3: 0 | U3: C | V3: Committee
A4: =A3+1 -> 2 | S4: 0 | U4: H | V4: Handicapped
A5: 3 | S5: 0 | U5: F | V5: First Timer
A6: 4 | S6: 0 | U6: N | V6: Not Camping
A7: 5 | S7: 0
A8: 6 | S8: 0
A9: 7 | S9: 0
A10: 8 | S10: 0
A11: 9 | S11: 0
A12: 10 | S12: 0
A13: 11 | S13: 0
A14: 12 | S14: 0
A15: 13 | S15: 0 | U15: CAUTION: CHANGE ONLY AREAS COLORED YELLOW!!!!!
A16: 14 | S16: 0
A17: 15 | S17: 0
A18: 16 | S18: 0
A19: 17 | S19: 0
A20: 18 | S20: 0
A21: 19 | S21: 0
A22: 20 | S22: 0
A23: 21 | S23: 0
A24: 22 | S24: 0
A25: 23 | S25: 0
A26: 24 | S26: 0
A27: 25 | S27: 0
A28: 26 | S28: 0
A29: 27 | S29: 0
A30: 28 | S30: 0
A31: 29 | S31: 0
A32: 30 | S32: 0
A33: 31 | S33: 0
A34: 32 | S34: 0
A35: 33 | S35: 0
A36: =A35+1 -> 34 | S36: 0
A37: 35 | S37: 0
A38: 36 | S38: 0
A39: 37 | S39: 0
A40: 38 | S40: 0
A41: 39 | S41: 0
A42: 40 | S42: 0
A43: 41 | S43: 0
A44: 42 | S44: 0
A45: 43 | S45: 0
A46: 44 | S46: 0
A47: 45 | S47: 0
A48: 46 | S48: 0
A49: 47 | S49: 0
A50: 48 | S50: 0
A51: 49 | S51: 0
A52: 50 | S52: 0
A53: 51 | S53: 0
A54: 52 | S54: 0
A55: 53 | S55: 0
A56: 54 | S56: 0
A57: 55 | S57: 0
A58: 56 | S58: 0
A59: 57 | S59: 0
A60: 58 | S60: 0
A61: 59 | S61: 0
A62: 60 | S62: 0
A63: 61 | S63: 0
A64: 62 | S64: 0
A65: 63 | S65: 0
A66: 64 | S66: 0
A67: 65 | S67: 0
A68: =A67+1 -> 66 | S68: 0
A69: 67 | S69: 0
A70: 68 | S70: 0
A71: 69 | S71: 0
A72: 70 | S72: 0
A73: 71 | S73: 0
A74: 72 | S74: 0
A75: 73 | S75: 0
A76: 74 | S76: 0
A77: 75 | S77: 0
A78: 76 | S78: 0
A79: 77 | S79: 0
A80: 78 | S80: 0
A81: 79 | S81: 0
A82: 80 | S82: 0
A83: 81 | S83: 0
A84: 82 | S84: 0
A85: 83 | S85: 0
A86: 84 | S86: 0
A87: 85 | S87: 0
A88: 86 | S88: 0
A89: 87 | S89: 0
A90: 88 | S90: 0
A91: 89 | S91: 0
A92: 90 | S92: 0
A93: 91 | S93: 0
A94: 92 | S94: 0
A95: 93 | S95: 0
A96: 94 | S96: 0
A97: 95 | S97: 0
A98: 96 | S98: 0
A99: 97 | S99: 0
A100: 98 | S100: 0
A101: 99 | S101: 0

Sheet Tally
A1: Nr Rigs | B1: Name | C1: FMCA # | D1: Camp Fee | E1: $ Meals | F1: $ Other (Tickets, etc.) | G1: Misc | H1: Total | I1: Initial Deposit | J1: Bal. Due | K1: Final Check # | L1: Bal. Paid | M1: Trailer Supply | N1: Total Collected
B2: Rally Totals | D2: =SUM(D3:D100) -> 50 | E2: =SUM(E3:E100) -> 121 | F2: =SUM(F3:F100) -> 46 | I2: =SUM(I3:I100) -> 50 | J2: =SUM(J3:J100) -> 519 | L2: =SUM(L3:L100) -> 519 | M2: =SUM(M3:M100) -> 2 | N2: =$I$2+$L$2 -> 569
A3: 1 | B3: =IF(+Rigs!D3="","",Rigs!D3) -> L Name, F Name | C3: =IF(+Rigs!F3="","",Rigs!F3) -> Fnnnnn | D3: =IF(Rigs!H3>0,+Rally!$E$2*Rigs!H3,"") -> 50 | E3: =IF(SUM(Rigs!J3:M3)>0,((Rally!$I$6*Rigs!J3)+(Rally!$J$6*Rigs!K3)+(Rally!$K$6*Rigs!L3)+(Rally!$L$6*Rigs!M3)),"") -> 121 | F3: =IF(SUM(Rigs!N3:O3)>0,((Rally!$M$6*Rigs!N3)+(Rally!$N$6*Rigs!O3)),"") -> 46 | G3: =IF(Rigs!I3>0,(ROUND(SUM(Rally!$B$3:$B$59)/SUM(Rigs!$I$3:$I$100),2)*Rigs!I3)+Rigs!S3,"") -> 350 | H3: =IF(SUM(D3:G3)<>0,SUM(D3:G3)+IF(SUM(M3:M3)>0,M3,0),"") -> 569 | I3: =IF(Rigs!P3<>0,+Rigs!P3,"") -> 50 | J3: =+IF(SUM(D3:G3)<>0,IF(SUM(I3:I3)>0,ROUNDUP(H3-I3,0),ROUNDUP(H3,0)),"") -> 519 | L3: 519 | M3: =IF(Rigs!I3>0,+Rally!$E$5,"") -> 2 | N3: Total Expenses | O3: TotalExpenses minus Trailer Supply
A4: =A3+1 -> 2 | B4: =IF(+Rigs!D4="","",Rigs!D4) ->  | C4: =IF(+Rigs!F4="","",Rigs!F4) ->  | D4: =IF(Rigs!H4>0,+Rally!$E$2*Rigs!H4,"") ->  | E4: =IF(SUM(Rigs!J4:M4)>0,((Rally!$I$6*Rigs!J4)+(Rally!$J$6*Rigs!K4)+(Rally!$K$6*Rigs!L4)+(Rally!$L$6*Rigs!M4)),"") ->  | F4: =IF(SUM(Rigs!N4:O4)>0,((Rally!$M$6*Rigs!N4)+(Rally!$N$6*Rigs!O4)),"") ->  | G4: =IF(Rigs!I4>0,(ROUND(SUM(Rally!$B$3:$B$59)/SUM(Rigs!$I$3:$I$100),2)*Rigs!I4)+Rigs!S4,"") ->  | H4: =IF(SUM(D4:G4)<>0,SUM(D4:G4)+IF(SUM(M4:M4)>0,M4,0),"") ->  | I4: =IF(Rigs!P4<>0,+Rigs!P4,"") ->  | J4: =+IF(SUM(D4:G4)<>0,IF(SUM(I4:I4)>0,ROUNDUP(H4-I4,0),ROUNDUP(H4,0)),"") ->  | M4: =IF(Rigs!I4>0,+Rally!$E$5,"") ->  | N4: Total Collected
A5: 3 | B5: =IF(+Rigs!D5="","",Rigs!D5) ->  | C5: =IF(+Rigs!F5="","",Rigs!F5) ->  | D5: =IF(Rigs!H5>0,+Rally!$E$2*Rigs!H5,"") ->  | E5: =IF(SUM(Rigs!J5:M5)>0,((Rally!$I$6*Rigs!J5)+(Rally!$J$6*Rigs!K5)+(Rally!$K$6*Rigs!L5)+(Rally!$L$6*Rigs!M5)),"") ->  | F5: =IF(SUM(Rigs!N5:O5)>0,((Rally!$M$6*Rigs!N5)+(Rally!$N$6*Rigs!O5)),"") ->  | G5: =IF(Rigs!I5>0,(ROUND(SUM(Rally!$B$3:$B$59)/SUM(Rigs!$I$3:$I$100),2)*Rigs!I5)+Rigs!S5,"") ->  | I5: =IF(Rigs!P5<>0,+Rigs!P5,"") ->  | M5: =IF(Rigs!I5>0,+Rally!$E$5,"") ->  | N5: Total Collected
A6: 4 | B6: =IF(+Rigs!D6="","",Rigs!D6) ->  | C6: =IF(+Rigs!F6="","",Rigs!F6) ->  | D6: =IF(Rigs!H6>0,+Rally!$E$2*Rigs!H6,"") ->  | E6: =IF(SUM(Rigs!J6:M6)>0,((Rally!$I$6*Rigs!J6)+(Rally!$J$6*Rigs!K6)+(Rally!$K$6*Rigs!L6)+(Rally!$L$6*Rigs!M6)),"") ->  | F6: =IF(SUM(Rigs!N6:O6)>0,((Rally!$M$6*Rigs!N6)+(Rally!$N$6*Rigs!O6)),"") ->  | G6: =IF(Rigs!I6>0,(ROUND(SUM(Rally!$B$3:$B$59)/SUM(Rigs!$I$3:$I$100),2)*Rigs!I6)+Rigs!S6,"") ->  | I6: =IF(Rigs!P6<>0,+Rigs!P6,"") ->  | M6: =IF(Rigs!I6>0,+Rally!$E$5,"") ->  | N6: =$D$2+$E$2+SUM(Rally!$B$3:$B$59) -> 521 | O6: =$D$2+$E$2+SUM(Rally!$B$3:$B$59)-$M$2 -> 519
A7: 5 | B7: =IF(+Rigs!D7="","",Rigs!D7) ->  | C7: =IF(+Rigs!F7="","",Rigs!F7) ->  | D7: =IF(Rigs!H7>0,+Rally!$E$2*Rigs!H7,"") ->  | E7: =IF(SUM(Rigs!J7:M7)>0,((Rally!$I$6*Rigs!J7)+(Rally!$J$6*Rigs!K7)+(Rally!$K$6*Rigs!L7)+(Rally!$L$6*Rigs!M7)),"") ->  | F7: =IF(SUM(Rigs!N7:O7)>0,((Rally!$M$6*Rigs!N7)+(Rally!$N$6*Rigs!O7)),"") ->  | G7: =IF(Rigs!I7>0,(ROUND(SUM(Rally!$B$3:$B$59)/SUM(Rigs!$I$3:$I$100),2)*Rigs!I7)+Rigs!S7,"") ->  | I7: =IF(Rigs!P7<>0,+Rigs!P7,"") ->  | M7: =IF(Rigs!I7>0,+Rally!$E$5,"") -> 
A8: 6 | B8: =IF(+Rigs!D8="","",Rigs!D8) ->  | C8: =IF(+Rigs!F8="","",Rigs!F8) ->  | D8: =IF(Rigs!H8>0,+Rally!$E$2*Rigs!H8,"") ->  | E8: =IF(SUM(Rigs!J8:M8)>0,((Rally!$I$6*Rigs!J8)+(Rally!$J$6*Rigs!K8)+(Rally!$K$6*Rigs!L8)+(Rally!$L$6*Rigs!M8)),"") ->  | F8: =IF(SUM(Rigs!N8:O8)>0,((Rally!$M$6*Rigs!N8)+(Rally!$N$6*Rigs!O8)),"") ->  | G8: =IF(Rigs!I8>0,(ROUND(SUM(Rally!$B$3:$B$59)/SUM(Rigs!$I$3:$I$100),2)*Rigs!I8)+Rigs!S8,"") ->  | I8: =IF(Rigs!P8<>0,+Rigs!P8,"") ->  | M8: =IF(Rigs!I8>0,+Rally!$E$5,"") -> 
A9: 7 | B9: =IF(+Rigs!D9="","",Rigs!D9) ->  | C9: =IF(+Rigs!F9="","",Rigs!F9) ->  | D9: =IF(Rigs!H9>0,+Rally!$E$2*Rigs!H9,"") ->  | E9: =IF(SUM(Rigs!J9:M9)>0,((Rally!$I$6*Rigs!J9)+(Rally!$J$6*Rigs!K9)+(Rally!$K$6*Rigs!L9)+(Rally!$L$6*Rigs!M9)),"") ->  | F9: =IF(SUM(Rigs!N9:O9)>0,((Rally!$M$6*Rigs!N9)+(Rally!$N$6*Rigs!O9)),"") ->  | G9: =IF(Rigs!I9>0,(ROUND(SUM(Rally!$B$3:$B$59)/SUM(Rigs!$I$3:$I$100),2)*Rigs!I9)+Rigs!S9,"") ->  | I9: =IF(Rigs!P9<>0,+Rigs!P9,"") ->  | M9: =IF(Rigs!I9>0,+Rally!$E$5,"") ->  | N9: Profit/Loss
A10: 8 | B10: =IF(+Rigs!D10="","",Rigs!D10) ->  | C10: =IF(+Rigs!F10="","",Rigs!F10) ->  | D10: =IF(Rigs!H10>0,+Rally!$E$2*Rigs!H10,"") ->  | E10: =IF(SUM(Rigs!J10:M10)>0,((Rally!$I$6*Rigs!J10)+(Rally!$J$6*Rigs!K10)+(Rally!$K$6*Rigs!L10)+(Rally!$L$6*Rigs!M10)),"") ->  | F10: =IF(SUM(Rigs!N10:O10)>0,((Rally!$M$6*Rigs!N10)+(Rally!$N$6*Rigs!O10)),"") ->  | G10: =IF(Rigs!I10>0,(ROUND(SUM(Rally!$B$3:$B$59)/SUM(Rigs!$I$3:$I$100),2)*Rigs!I10)+Rigs!S10,"") ->  | I10: =IF(Rigs!P10<>0,+Rigs!P10,"") ->  | M10: =IF(Rigs!I10>0,+Rally!$E$5,"") ->  | N10: Total Collected
A11: 9 | B11: =IF(+Rigs!D11="","",Rigs!D11) ->  | C11: =IF(+Rigs!F11="","",Rigs!F11) ->  | D11: =IF(Rigs!H11>0,+Rally!$E$2*Rigs!H11,"") ->  | E11: =IF(SUM(Rigs!J11:M11)>0,((Rally!$I$6*Rigs!J11)+(Rally!$J$6*Rigs!K11)+(Rally!$K$6*Rigs!L11)+(Rally!$L$6*Rigs!M11)),"") ->  | F11: =IF(SUM(Rigs!N11:O11)>0,((Rally!$M$6*Rigs!N11)+(Rally!$N$6*Rigs!O11)),"") ->  | G11: =IF(Rigs!I11>0,(ROUND(SUM(Rally!$B$3:$B$59)/SUM(Rigs!$I$3:$I$100),2)*Rigs!I11)+Rigs!S11,"") ->  | I11: =IF(Rigs!P11<>0,+Rigs!P11,"") ->  | M11: =IF(Rigs!I11>0,+Rally!$E$5,"") ->  | N11: Total Collected
A12: 10 | B12: =IF(+Rigs!D12="","",Rigs!D12) ->  | C12: =IF(+Rigs!F12="","",Rigs!F12) ->  | D12: =IF(Rigs!H12>0,+Rally!$E$2*Rigs!H12,"") ->  | E12: =IF(SUM(Rigs!J12:M12)>0,((Rally!$I$6*Rigs!J12)+(Rally!$J$6*Rigs!K12)+(Rally!$K$6*Rigs!L12)+(Rally!$L$6*Rigs!M12)),"") ->  | F12: =IF(SUM(Rigs!N12:O12)>0,((Rally!$M$6*Rigs!N12)+(Rally!$N$6*Rigs!O12)),"") ->  | G12: =IF(Rigs!I12>0,(ROUND(SUM(Rally!$B$3:$B$59)/SUM(Rigs!$I$3:$I$100),2)*Rigs!I12)+Rigs!S12,"") ->  | I12: =IF(Rigs!P12<>0,+Rigs!P12,"") ->  | M12: =IF(Rigs!I12>0,+Rally!$E$5,"") ->  | N12: =$N$2-$N$6 -> 48
A13: 11 | B13: =IF(+Rigs!D13="","",Rigs!D13) ->  | C13: =IF(+Rigs!F13="","",Rigs!F13) ->  | D13: =IF(Rigs!H13>0,+Rally!$E$2*Rigs!H13,"") ->  | E13: =IF(SUM(Rigs!J13:M13)>0,((Rally!$I$6*Rigs!J13)+(Rally!$J$6*Rigs!K13)+(Rally!$K$6*Rigs!L13)+(Rally!$L$6*Rigs!M13)),"") ->  | F13: =IF(SUM(Rigs!N13:O13)>0,((Rally!$M$6*Rigs!N13)+(Rally!$N$6*Rigs!O13)),"") ->  | G13: =IF(Rigs!I13>0,(ROUND(SUM(Rally!$B$3:$B$59)/SUM(Rigs!$I$3:$I$100),2)*Rigs!I13)+Rigs!S13,"") ->  | I13: =IF(Rigs!P13<>0,+Rigs!P13,"") ->  | M13: =IF(Rigs!I13>0,+Rally!$E$5,"") -> 
A14: 12 | B14: =IF(+Rigs!D14="","",Rigs!D14) ->  | C14: =IF(+Rigs!F14="","",Rigs!F14) ->  | D14: =IF(Rigs!H14>0,+Rally!$E$2*Rigs!H14,"") ->  | E14: =IF(SUM(Rigs!J14:M14)>0,((Rally!$I$6*Rigs!J14)+(Rally!$J$6*Rigs!K14)+(Rally!$K$6*Rigs!L14)+(Rally!$L$6*Rigs!M14)),"") ->  | F14: =IF(SUM(Rigs!N14:O14)>0,((Rally!$M$6*Rigs!N14)+(Rally!$N$6*Rigs!O14)),"") ->  | G14: =IF(Rigs!I14>0,(ROUND(SUM(Rally!$B$3:$B$59)/SUM(Rigs!$I$3:$I$100),2)*Rigs!I14)+Rigs!S14,"") ->  | I14: =IF(Rigs!P14<>0,+Rigs!P14,"") ->  | M14: =IF(Rigs!I14>0,+Rally!$E$5,"") -> 
A15: 13 | B15: =IF(+Rigs!D15="","",Rigs!D15) ->  | C15: =IF(+Rigs!F15="","",Rigs!F15) ->  | D15: =IF(Rigs!H15>0,+Rally!$E$2*Rigs!H15,"") ->  | E15: =IF(SUM(Rigs!J15:M15)>0,((Rally!$I$6*Rigs!J15)+(Rally!$J$6*Rigs!K15)+(Rally!$K$6*Rigs!L15)+(Rally!$L$6*Rigs!M15)),"") ->  | F15: =IF(SUM(Rigs!N15:O15)>0,((Rally!$M$6*Rigs!N15)+(Rally!$N$6*Rigs!O15)),"") ->  | G15: =IF(Rigs!I15>0,(ROUND(SUM(Rally!$B$3:$B$59)/SUM(Rigs!$I$3:$I$100),2)*Rigs!I15)+Rigs!S15,"") ->  | I15: =IF(Rigs!P15<>0,+Rigs!P15,"") ->  | M15: =IF(Rigs!I15>0,+Rally!$E$5,"") -> 
A16: 14 | B16: =IF(+Rigs!D16="","",Rigs!D16) ->  | C16: =IF(+Rigs!F16="","",Rigs!F16) ->  | D16: =IF(Rigs!H16>0,+Rally!$E$2*Rigs!H16,"") ->  | E16: =IF(SUM(Rigs!J16:M16)>0,((Rally!$I$6*Rigs!J16)+(Rally!$J$6*Rigs!K16)+(Rally!$K$6*Rigs!L16)+(Rally!$L$6*Rigs!M16)),"") ->  | F16: =IF(SUM(Rigs!N16:O16)>0,((Rally!$M$6*Rigs!N16)+(Rally!$N$6*Rigs!O16)),"") ->  | G16: =IF(Rigs!I16>0,(ROUND(SUM(Rally!$B$3:$B$59)/SUM(Rigs!$I$3:$I$100),2)*Rigs!I16)+Rigs!S16,"") ->  | I16: =IF(Rigs!P16<>0,+Rigs!P16,"") ->  | M16: =IF(Rigs!I16>0,+Rally!$E$5,"") ->  | N16: CAUTION: CHANGE ONLY AREAS COLORED YELLOW!!!!!
A17: 15 | B17: =IF(+Rigs!D17="","",Rigs!D17) ->  | C17: =IF(+Rigs!F17="","",Rigs!F17) ->  | D17: =IF(Rigs!H17>0,+Rally!$E$2*Rigs!H17,"") ->  | E17: =IF(SUM(Rigs!J17:M17)>0,((Rally!$I$6*Rigs!J17)+(Rally!$J$6*Rigs!K17)+(Rally!$K$6*Rigs!L17)+(Rally!$L$6*Rigs!M17)),"") ->  | F17: =IF(SUM(Rigs!N17:O17)>0,((Rally!$M$6*Rigs!N17)+(Rally!$N$6*Rigs!O17)),"") ->  | G17: =IF(Rigs!I17>0,(ROUND(SUM(Rally!$B$3:$B$59)/SUM(Rigs!$I$3:$I$100),2)*Rigs!I17)+Rigs!S17,"") ->  | I17: =IF(Rigs!P17<>0,+Rigs!P17,"") ->  | M17: =IF(Rigs!I17>0,+Rally!$E$5,"") -> 
A18: 16 | B18: =IF(+Rigs!D18="","",Rigs!D18) ->  | C18: =IF(+Rigs!F18="","",Rigs!F18) ->  | D18: =IF(Rigs!H18>0,+Rally!$E$2*Rigs!H18,"") ->  | E18: =IF(SUM(Rigs!J18:M18)>0,((Rally!$I$6*Rigs!J18)+(Rally!$J$6*Rigs!K18)+(Rally!$K$6*Rigs!L18)+(Rally!$L$6*Rigs!M18)),"") ->  | F18: =IF(SUM(Rigs!N18:O18)>0,((Rally!$M$6*Rigs!N18)+(Rally!$N$6*Rigs!O18)),"") ->  | G18: =IF(Rigs!I18>0,(ROUND(SUM(Rally!$B$3:$B$59)/SUM(Rigs!$I$3:$I$100),2)*Rigs!I18)+Rigs!S18,"") ->  | I18: =IF(Rigs!P18<>0,+Rigs!P18,"") ->  | M18: =IF(Rigs!I18>0,+Rally!$E$5,"") -> 
A19: 17 | B19: =IF(+Rigs!D19="","",Rigs!D19) ->  | C19: =IF(+Rigs!F19="","",Rigs!F19) ->  | D19: =IF(Rigs!H19>0,+Rally!$E$2*Rigs!H19,"") ->  | E19: =IF(SUM(Rigs!J19:M19)>0,((Rally!$I$6*Rigs!J19)+(Rally!$J$6*Rigs!K19)+(Rally!$K$6*Rigs!L19)+(Rally!$L$6*Rigs!M19)),"") ->  | F19: =IF(SUM(Rigs!N19:O19)>0,((Rally!$M$6*Rigs!N19)+(Rally!$N$6*Rigs!O19)),"") ->  | G19: =IF(Rigs!I19>0,(ROUND(SUM(Rally!$B$3:$B$59)/SUM(Rigs!$I$3:$I$100),2)*Rigs!I19)+Rigs!S19,"") ->  | I19: =IF(Rigs!P19<>0,+Rigs!P19,"") ->  | M19: =IF(Rigs!I19>0,+Rally!$E$5,"") -> 
A20: 18 | B20: =IF(+Rigs!D20="","",Rigs!D20) ->  | C20: =IF(+Rigs!F20="","",Rigs!F20) ->  | D20: =IF(Rigs!H20>0,+Rally!$E$2*Rigs!H20,"") ->  | E20: =IF(SUM(Rigs!J20:M20)>0,((Rally!$I$6*Rigs!J20)+(Rally!$J$6*Rigs!K20)+(Rally!$K$6*Rigs!L20)+(Rally!$L$6*Rigs!M20)),"") ->  | F20: =IF(SUM(Rigs!N20:O20)>0,((Rally!$M$6*Rigs!N20)+(Rally!$N$6*Rigs!O20)),"") ->  | G20: =IF(Rigs!I20>0,(ROUND(SUM(Rally!$B$3:$B$59)/SUM(Rigs!$I$3:$I$100),2)*Rigs!I20)+Rigs!S20,"") ->  | I20: =IF(Rigs!P20<>0,+Rigs!P20,"") ->  | M20: =IF(Rigs!I20>0,+Rally!$E$5,"") -> 
A21: 19 | B21: =IF(+Rigs!D21="","",Rigs!D21) ->  | C21: =IF(+Rigs!F21="","",Rigs!F21) ->  | D21: =IF(Rigs!H21>0,+Rally!$E$2*Rigs!H21,"") ->  | E21: =IF(SUM(Rigs!J21:M21)>0,((Rally!$I$6*Rigs!J21)+(Rally!$J$6*Rigs!K21)+(Rally!$K$6*Rigs!L21)+(Rally!$L$6*Rigs!M21)),"") ->  | F21: =IF(SUM(Rigs!N21:O21)>0,((Rally!$M$6*Rigs!N21)+(Rally!$N$6*Rigs!O21)),"") ->  | G21: =IF(Rigs!I21>0,(ROUND(SUM(Rally!$B$3:$B$59)/SUM(Rigs!$I$3:$I$100),2)*Rigs!I21)+Rigs!S21,"") ->  | I21: =IF(Rigs!P21<>0,+Rigs!P21,"") ->  | M21: =IF(Rigs!I21>0,+Rally!$E$5,"") -> 
A22: 20 | B22: =IF(+Rigs!D22="","",Rigs!D22) ->  | C22: =IF(+Rigs!F22="","",Rigs!F22) ->  | D22: =IF(Rigs!H22>0,+Rally!$E$2*Rigs!H22,"") ->  | E22: =IF(SUM(Rigs!J22:M22)>0,((Rally!$I$6*Rigs!J22)+(Rally!$J$6*Rigs!K22)+(Rally!$K$6*Rigs!L22)+(Rally!$L$6*Rigs!M22)),"") ->  | F22: =IF(SUM(Rigs!N22:O22)>0,((Rally!$M$6*Rigs!N22)+(Rally!$N$6*Rigs!O22)),"") ->  | G22: =IF(Rigs!I22>0,(ROUND(SUM(Rally!$B$3:$B$59)/SUM(Rigs!$I$3:$I$100),2)*Rigs!I22)+Rigs!S22,"") ->  | I22: =IF(Rigs!P22<>0,+Rigs!P22,"") ->  | M22: =IF(Rigs!I22>0,+Rally!$E$5,"") -> 
A23: 21 | B23: =IF(+Rigs!D23="","",Rigs!D23) ->  | C23: =IF(+Rigs!F23="","",Rigs!F23) ->  | D23: =IF(Rigs!H23>0,+Rally!$E$2*Rigs!H23,"") ->  | E23: =IF(SUM(Rigs!J23:M23)>0,((Rally!$I$6*Rigs!J23)+(Rally!$J$6*Rigs!K23)+(Rally!$K$6*Rigs!L23)+(Rally!$L$6*Rigs!M23)),"") ->  | F23: =IF(SUM(Rigs!N23:O23)>0,((Rally!$M$6*Rigs!N23)+(Rally!$N$6*Rigs!O23)),"") ->  | G23: =IF(Rigs!I23>0,(ROUND(SUM(Rally!$B$3:$B$59)/SUM(Rigs!$I$3:$I$100),2)*Rigs!I23)+Rigs!S23,"") ->  | I23: =IF(Rigs!P23<>0,+Rigs!P23,"") ->  | M23: =IF(Rigs!I23>0,+Rally!$E$5,"") -> 
A24: 22 | B24: =IF(+Rigs!D24="","",Rigs!D24) ->  | C24: =IF(+Rigs!F24="","",Rigs!F24) ->  | D24: =IF(Rigs!H24>0,+Rally!$E$2*Rigs!H24,"") ->  | E24: =IF(SUM(Rigs!J24:M24)>0,((Rally!$I$6*Rigs!J24)+(Rally!$J$6*Rigs!K24)+(Rally!$K$6*Rigs!L24)+(Rally!$L$6*Rigs!M24)),"") ->  | F24: =IF(SUM(Rigs!N24:O24)>0,((Rally!$M$6*Rigs!N24)+(Rally!$N$6*Rigs!O24)),"") ->  | G24: =IF(Rigs!I24>0,(ROUND(SUM(Rally!$B$3:$B$59)/SUM(Rigs!$I$3:$I$100),2)*Rigs!I24)+Rigs!S24,"") ->  | I24: =IF(Rigs!P24<>0,+Rigs!P24,"") ->  | M24: =IF(Rigs!I24>0,+Rally!$E$5,"") -> 
A25: 23 | B25: =IF(+Rigs!D25="","",Rigs!D25) ->  | C25: =IF(+Rigs!F25="","",Rigs!F25) ->  | D25: =IF(Rigs!H25>0,+Rally!$E$2*Rigs!H25,"") ->  | E25: =IF(SUM(Rigs!J25:M25)>0,((Rally!$I$6*Rigs!J25)+(Rally!$J$6*Rigs!K25)+(Rally!$K$6*Rigs!L25)+(Rally!$L$6*Rigs!M25)),"") ->  | F25: =IF(SUM(Rigs!N25:O25)>0,((Rally!$M$6*Rigs!N25)+(Rally!$N$6*Rigs!O25)),"") ->  | G25: =IF(Rigs!I25>0,(ROUND(SUM(Rally!$B$3:$B$59)/SUM(Rigs!$I$3:$I$100),2)*Rigs!I25)+Rigs!S25,"") ->  | I25: =IF(Rigs!P25<>0,+Rigs!P25,"") ->  | M25: =IF(Rigs!I25>0,+Rally!$E$5,"") -> 
A26: 24 | B26: =IF(+Rigs!D26="","",Rigs!D26) ->  | C26: =IF(+Rigs!F26="","",Rigs!F26) ->  | D26: =IF(Rigs!H26>0,+Rally!$E$2*Rigs!H26,"") ->  | E26: =IF(SUM(Rigs!J26:M26)>0,((Rally!$I$6*Rigs!J26)+(Rally!$J$6*Rigs!K26)+(Rally!$K$6*Rigs!L26)+(Rally!$L$6*Rigs!M26)),"") ->  | F26: =IF(SUM(Rigs!N26:O26)>0,((Rally!$M$6*Rigs!N26)+(Rally!$N$6*Rigs!O26)),"") ->  | G26: =IF(Rigs!I26>0,(ROUND(SUM(Rally!$B$3:$B$59)/SUM(Rigs!$I$3:$I$100),2)*Rigs!I26)+Rigs!S26,"") ->  | I26: =IF(Rigs!P26<>0,+Rigs!P26,"") ->  | M26: =IF(Rigs!I26>0,+Rally!$E$5,"") -> 
A27: 25 | B27: =IF(+Rigs!D27="","",Rigs!D27) ->  | C27: =IF(+Rigs!F27="","",Rigs!F27) ->  | D27: =IF(Rigs!H27>0,+Rally!$E$2*Rigs!H27,"") ->  | E27: =IF(SUM(Rigs!J27:M27)>0,((Rally!$I$6*Rigs!J27)+(Rally!$J$6*Rigs!K27)+(Rally!$K$6*Rigs!L27)+(Rally!$L$6*Rigs!M27)),"") ->  | F27: =IF(SUM(Rigs!N27:O27)>0,((Rally!$M$6*Rigs!N27)+(Rally!$N$6*Rigs!O27)),"") ->  | G27: =IF(Rigs!I27>0,(ROUND(SUM(Rally!$B$3:$B$59)/SUM(Rigs!$I$3:$I$100),2)*Rigs!I27)+Rigs!S27,"") ->  | I27: =IF(Rigs!P27<>0,+Rigs!P27,"") ->  | M27: =IF(Rigs!I27>0,+Rally!$E$5,"") -> 
A28: 26 | B28: =IF(+Rigs!D28="","",Rigs!D28) ->  | C28: =IF(+Rigs!F28="","",Rigs!F28) ->  | D28: =IF(Rigs!H28>0,+Rally!$E$2*Rigs!H28,"") ->  | E28: =IF(SUM(Rigs!J28:M28)>0,((Rally!$I$6*Rigs!J28)+(Rally!$J$6*Rigs!K28)+(Rally!$K$6*Rigs!L28)+(Rally!$L$6*Rigs!M28)),"") ->  | F28: =IF(SUM(Rigs!N28:O28)>0,((Rally!$M$6*Rigs!N28)+(Rally!$N$6*Rigs!O28)),"") ->  | G28: =IF(Rigs!I28>0,(ROUND(SUM(Rally!$B$3:$B$59)/SUM(Rigs!$I$3:$I$100),2)*Rigs!I28)+Rigs!S28,"") ->  | I28: =IF(Rigs!P28<>0,+Rigs!P28,"") ->  | M28: =IF(Rigs!I28>0,+Rally!$E$5,"") -> 
A29: 27 | B29: =IF(+Rigs!D29="","",Rigs!D29) ->  | C29: =IF(+Rigs!F29="","",Rigs!F29) ->  | D29: =IF(Rigs!H29>0,+Rally!$E$2*Rigs!H29,"") ->  | E29: =IF(SUM(Rigs!J29:M29)>0,((Rally!$I$6*Rigs!J29)+(Rally!$J$6*Rigs!K29)+(Rally!$K$6*Rigs!L29)+(Rally!$L$6*Rigs!M29)),"") ->  | F29: =IF(SUM(Rigs!N29:O29)>0,((Rally!$M$6*Rigs!N29)+(Rally!$N$6*Rigs!O29)),"") ->  | G29: =IF(Rigs!I29>0,(ROUND(SUM(Rally!$B$3:$B$59)/SUM(Rigs!$I$3:$I$100),2)*Rigs!I29)+Rigs!S29,"") ->  | I29: =IF(Rigs!P29<>0,+Rigs!P29,"") ->  | M29: =IF(Rigs!I29>0,+Rally!$E$5,"") -> 
A30: 28 | B30: =IF(+Rigs!D30="","",Rigs!D30) ->  | C30: =IF(+Rigs!F30="","",Rigs!F30) ->  | D30: =IF(Rigs!H30>0,+Rally!$E$2*Rigs!H30,"") ->  | E30: =IF(SUM(Rigs!J30:M30)>0,((Rally!$I$6*Rigs!J30)+(Rally!$J$6*Rigs!K30)+(Rally!$K$6*Rigs!L30)+(Rally!$L$6*Rigs!M30)),"") ->  | F30: =IF(SUM(Rigs!N30:O30)>0,((Rally!$M$6*Rigs!N30)+(Rally!$N$6*Rigs!O30)),"") ->  | G30: =IF(Rigs!I30>0,(ROUND(SUM(Rally!$B$3:$B$59)/SUM(Rigs!$I$3:$I$100),2)*Rigs!I30)+Rigs!S30,"") ->  | I30: =IF(Rigs!P30<>0,+Rigs!P30,"") ->  | M30: =IF(Rigs!I30>0,+Rally!$E$5,"") -> 
A31: 29 | B31: =IF(+Rigs!D31="","",Rigs!D31) ->  | C31: =IF(+Rigs!F31="","",Rigs!F31) ->  | D31: =IF(Rigs!H31>0,+Rally!$E$2*Rigs!H31,"") ->  | E31: =IF(SUM(Rigs!J31:M31)>0,((Rally!$I$6*Rigs!J31)+(Rally!$J$6*Rigs!K31)+(Rally!$K$6*Rigs!L31)+(Rally!$L$6*Rigs!M31)),"") ->  | F31: =IF(SUM(Rigs!N31:O31)>0,((Rally!$M$6*Rigs!N31)+(Rally!$N$6*Rigs!O31)),"") ->  | G31: =IF(Rigs!I31>0,(ROUND(SUM(Rally!$B$3:$B$59)/SUM(Rigs!$I$3:$I$100),2)*Rigs!I31)+Rigs!S31,"") ->  | I31: =IF(Rigs!P31<>0,+Rigs!P31,"") ->  | M31: =IF(Rigs!I31>0,+Rally!$E$5,"") -> 
A32: 30 | B32: =IF(+Rigs!D32="","",Rigs!D32) ->  | C32: =IF(+Rigs!F32="","",Rigs!F32) ->  | D32: =IF(Rigs!H32>0,+Rally!$E$2*Rigs!H32,"") ->  | E32: =IF(SUM(Rigs!J32:M32)>0,((Rally!$I$6*Rigs!J32)+(Rally!$J$6*Rigs!K32)+(Rally!$K$6*Rigs!L32)+(Rally!$L$6*Rigs!M32)),"") ->  | F32: =IF(SUM(Rigs!N32:O32)>0,((Rally!$M$6*Rigs!N32)+(Rally!$N$6*Rigs!O32)),"") ->  | G32: =IF(Rigs!I32>0,(ROUND(SUM(Rally!$B$3:$B$59)/SUM(Rigs!$I$3:$I$100),2)*Rigs!I32)+Rigs!S32,"") ->  | I32: =IF(Rigs!P32<>0,+Rigs!P32,"") ->  | M32: =IF(Rigs!I32>0,+Rally!$E$5,"") -> 
A33: 31 | B33: =IF(+Rigs!D33="","",Rigs!D33) ->  | C33: =IF(+Rigs!F33="","",Rigs!F33) ->  | D33: =IF(Rigs!H33>0,+Rally!$E$2*Rigs!H33,"") ->  | E33: =IF(SUM(Rigs!J33:M33)>0,((Rally!$I$6*Rigs!J33)+(Rally!$J$6*Rigs!K33)+(Rally!$K$6*Rigs!L33)+(Rally!$L$6*Rigs!M33)),"") ->  | F33: =IF(SUM(Rigs!N33:O33)>0,((Rally!$M$6*Rigs!N33)+(Rally!$N$6*Rigs!O33)),"") ->  | G33: =IF(Rigs!I33>0,(ROUND(SUM(Rally!$B$3:$B$59)/SUM(Rigs!$I$3:$I$100),2)*Rigs!I33)+Rigs!S33,"") ->  | I33: =IF(Rigs!P33<>0,+Rigs!P33,"") ->  | M33: =IF(Rigs!I33>0,+Rally!$E$5,"") -> 
A34: 32 | B34: =IF(+Rigs!D34="","",Rigs!D34) ->  | C34: =IF(+Rigs!F34="","",Rigs!F34) ->  | D34: =IF(Rigs!H34>0,+Rally!$E$2*Rigs!H34,"") ->  | E34: =IF(SUM(Rigs!J34:M34)>0,((Rally!$I$6*Rigs!J34)+(Rally!$J$6*Rigs!K34)+(Rally!$K$6*Rigs!L34)+(Rally!$L$6*Rigs!M34)),"") ->  | F34: =IF(SUM(Rigs!N34:O34)>0,((Rally!$M$6*Rigs!N34)+(Rally!$N$6*Rigs!O34)),"") ->  | G34: =IF(Rigs!I34>0,(ROUND(SUM(Rally!$B$3:$B$59)/SUM(Rigs!$I$3:$I$100),2)*Rigs!I34)+Rigs!S34,"") ->  | I34: =IF(Rigs!P34<>0,+Rigs!P34,"") ->  | M34: =IF(Rigs!I34>0,+Rally!$E$5,"") -> 
A35: 33 | B35: =IF(+Rigs!D35="","",Rigs!D35) ->  | C35: =IF(+Rigs!F35="","",Rigs!F35) ->  | D35: =IF(Rigs!H35>0,+Rally!$E$2*Rigs!H35,"") ->  | E35: =IF(SUM(Rigs!J35:M35)>0,((Rally!$I$6*Rigs!J35)+(Rally!$J$6*Rigs!K35)+(Rally!$K$6*Rigs!L35)+(Rally!$L$6*Rigs!M35)),"") ->  | F35: =IF(SUM(Rigs!N35:O35)>0,((Rally!$M$6*Rigs!N35)+(Rally!$N$6*Rigs!O35)),"") ->  | G35: =IF(Rigs!I35>0,(ROUND(SUM(Rally!$B$3:$B$59)/SUM(Rigs!$I$3:$I$100),2)*Rigs!I35)+Rigs!S35,"") ->  | I35: =IF(Rigs!P35<>0,+Rigs!P35,"") ->  | M35: =IF(Rigs!I35>0,+Rally!$E$5,"") -> 
A36: 34 | B36: =IF(+Rigs!D36="","",Rigs!D36) ->  | C36: =IF(+Rigs!F36="","",Rigs!F36) ->  | D36: =IF(Rigs!H36>0,+Rally!$E$2*Rigs!H36,"") ->  | E36: =IF(SUM(Rigs!J36:M36)>0,((Rally!$I$6*Rigs!J36)+(Rally!$J$6*Rigs!K36)+(Rally!$K$6*Rigs!L36)+(Rally!$L$6*Rigs!M36)),"") ->  | F36: =IF(SUM(Rigs!N36:O36)>0,((Rally!$M$6*Rigs!N36)+(Rally!$N$6*Rigs!O36)),"") ->  | G36: =IF(Rigs!I36>0,(ROUND(SUM(Rally!$B$3:$B$59)/SUM(Rigs!$I$3:$I$100),2)*Rigs!I36)+Rigs!S36,"") ->  | I36: =IF(Rigs!P36<>0,+Rigs!P36,"") ->  | M36: =IF(Rigs!I36>0,+Rally!$E$5,"") -> 
A37: 35 | B37: =IF(+Rigs!D37="","",Rigs!D37) ->  | C37: =IF(+Rigs!F37="","",Rigs!F37) ->  | D37: =IF(Rigs!H37>0,+Rally!$E$2*Rigs!H37,"") ->  | E37: =IF(SUM(Rigs!J37:M37)>0,((Rally!$I$6*Rigs!J37)+(Rally!$J$6*Rigs!K37)+(Rally!$K$6*Rigs!L37)+(Rally!$L$6*Rigs!M37)),"") ->  | F37: =IF(SUM(Rigs!N37:O37)>0,((Rally!$M$6*Rigs!N37)+(Rally!$N$6*Rigs!O37)),"") ->  | G37: =IF(Rigs!I37>0,(ROUND(SUM(Rally!$B$3:$B$59)/SUM(Rigs!$I$3:$I$100),2)*Rigs!I37)+Rigs!S37,"") ->  | I37: =IF(Rigs!P37<>0,+Rigs!P37,"") ->  | M37: =IF(Rigs!I37>0,+Rally!$E$5,"") -> 
A38: 36 | B38: =IF(+Rigs!D38="","",Rigs!D38) ->  | C38: =IF(+Rigs!F38="","",Rigs!F38) ->  | D38: =IF(Rigs!H38>0,+Rally!$E$2*Rigs!H38,"") ->  | E38: =IF(SUM(Rigs!J38:M38)>0,((Rally!$I$6*Rigs!J38)+(Rally!$J$6*Rigs!K38)+(Rally!$K$6*Rigs!L38)+(Rally!$L$6*Rigs!M38)),"") ->  | F38: =IF(SUM(Rigs!N38:O38)>0,((Rally!$M$6*Rigs!N38)+(Rally!$N$6*Rigs!O38)),"") ->  | G38: =IF(Rigs!I38>0,(ROUND(SUM(Rally!$B$3:$B$59)/SUM(Rigs!$I$3:$I$100),2)*Rigs!I38)+Rigs!S38,"") ->  | I38: =IF(Rigs!P38<>0,+Rigs!P38,"") ->  | M38: =IF(Rigs!I38>0,+Rally!$E$5,"") -> 
A39: 37 | B39: =IF(+Rigs!D39="","",Rigs!D39) ->  | C39: =IF(+Rigs!F39="","",Rigs!F39) ->  | D39: =IF(Rigs!H39>0,+Rally!$E$2*Rigs!H39,"") ->  | E39: =IF(SUM(Rigs!J39:M39)>0,((Rally!$I$6*Rigs!J39)+(Rally!$J$6*Rigs!K39)+(Rally!$K$6*Rigs!L39)+(Rally!$L$6*Rigs!M39)),"") ->  | F39: =IF(SUM(Rigs!N39:O39)>0,((Rally!$M$6*Rigs!N39)+(Rally!$N$6*Rigs!O39)),"") ->  | G39: =IF(Rigs!I39>0,(ROUND(SUM(Rally!$B$3:$B$59)/SUM(Rigs!$I$3:$I$100),2)*Rigs!I39)+Rigs!S39,"") ->  | I39: =IF(Rigs!P39<>0,+Rigs!P39,"") ->  | M39: =IF(Rigs!I39>0,+Rally!$E$5,"") -> 
A40: 38 | B40: =IF(+Rigs!D40="","",Rigs!D40) ->  | C40: =IF(+Rigs!F40="","",Rigs!F40) ->  | D40: =IF(Rigs!H40>0,+Rally!$E$2*Rigs!H40,"") ->  | E40: =IF(SUM(Rigs!J40:M40)>0,((Rally!$I$6*Rigs!J40)+(Rally!$J$6*Rigs!K40)+(Rally!$K$6*Rigs!L40)+(Rally!$L$6*Rigs!M40)),"") ->  | F40: =IF(SUM(Rigs!N40:O40)>0,((Rally!$M$6*Rigs!N40)+(Rally!$N$6*Rigs!O40)),"") ->  | G40: =IF(Rigs!I40>0,(ROUND(SUM(Rally!$B$3:$B$59)/SUM(Rigs!$I$3:$I$100),2)*Rigs!I40)+Rigs!S40,"") ->  | I40: =IF(Rigs!P40<>0,+Rigs!P40,"") ->  | M40: =IF(Rigs!I40>0,+Rally!$E$5,"") -> 
A41: 39 | B41: =IF(+Rigs!D41="","",Rigs!D41) ->  | C41: =IF(+Rigs!F41="","",Rigs!F41) ->  | D41: =IF(Rigs!H41>0,+Rally!$E$2*Rigs!H41,"") ->  | E41: =IF(SUM(Rigs!J41:M41)>0,((Rally!$I$6*Rigs!J41)+(Rally!$J$6*Rigs!K41)+(Rally!$K$6*Rigs!L41)+(Rally!$L$6*Rigs!M41)),"") ->  | F41: =IF(SUM(Rigs!N41:O41)>0,((Rally!$M$6*Rigs!N41)+(Rally!$N$6*Rigs!O41)),"") ->  | G41: =IF(Rigs!I41>0,(ROUND(SUM(Rally!$B$3:$B$59)/SUM(Rigs!$I$3:$I$100),2)*Rigs!I41)+Rigs!S41,"") ->  | I41: =IF(Rigs!P41<>0,+Rigs!P41,"") ->  | M41: =IF(Rigs!I41>0,+Rally!$E$5,"") -> 
A42: 40 | B42: =IF(+Rigs!D42="","",Rigs!D42) ->  | C42: =IF(+Rigs!F42="","",Rigs!F42) ->  | D42: =IF(Rigs!H42>0,+Rally!$E$2*Rigs!H42,"") ->  | E42: =IF(SUM(Rigs!J42:M42)>0,((Rally!$I$6*Rigs!J42)+(Rally!$J$6*Rigs!K42)+(Rally!$K$6*Rigs!L42)+(Rally!$L$6*Rigs!M42)),"") ->  | F42: =IF(SUM(Rigs!N42:O42)>0,((Rally!$M$6*Rigs!N42)+(Rally!$N$6*Rigs!O42)),"") ->  | G42: =IF(Rigs!I42>0,(ROUND(SUM(Rally!$B$3:$B$59)/SUM(Rigs!$I$3:$I$100),2)*Rigs!I42)+Rigs!S42,"") ->  | I42: =IF(Rigs!P42<>0,+Rigs!P42,"") ->  | M42: =IF(Rigs!I42>0,+Rally!$E$5,"") -> 
A43: 41 | B43: =IF(+Rigs!D43="","",Rigs!D43) ->  | C43: =IF(+Rigs!F43="","",Rigs!F43) ->  | D43: =IF(Rigs!H43>0,+Rally!$E$2*Rigs!H43,"") ->  | E43: =IF(SUM(Rigs!J43:M43)>0,((Rally!$I$6*Rigs!J43)+(Rally!$J$6*Rigs!K43)+(Rally!$K$6*Rigs!L43)+(Rally!$L$6*Rigs!M43)),"") ->  | F43: =IF(SUM(Rigs!N43:O43)>0,((Rally!$M$6*Rigs!N43)+(Rally!$N$6*Rigs!O43)),"") ->  | G43: =IF(Rigs!I43>0,(ROUND(SUM(Rally!$B$3:$B$59)/SUM(Rigs!$I$3:$I$100),2)*Rigs!I43)+Rigs!S43,"") ->  | I43: =IF(Rigs!P43<>0,+Rigs!P43,"") ->  | M43: =IF(Rigs!I43>0,+Rally!$E$5,"") -> 
A44: 42 | B44: =IF(+Rigs!D44="","",Rigs!D44) ->  | C44: =IF(+Rigs!F44="","",Rigs!F44) ->  | D44: =IF(Rigs!H44>0,+Rally!$E$2*Rigs!H44,"") ->  | E44: =IF(SUM(Rigs!J44:M44)>0,((Rally!$I$6*Rigs!J44)+(Rally!$J$6*Rigs!K44)+(Rally!$K$6*Rigs!L44)+(Rally!$L$6*Rigs!M44)),"") ->  | F44: =IF(SUM(Rigs!N44:O44)>0,((Rally!$M$6*Rigs!N44)+(Rally!$N$6*Rigs!O44)),"") ->  | G44: =IF(Rigs!I44>0,(ROUND(SUM(Rally!$B$3:$B$59)/SUM(Rigs!$I$3:$I$100),2)*Rigs!I44)+Rigs!S44,"") ->  | I44: =IF(Rigs!P44<>0,+Rigs!P44,"") ->  | M44: =IF(Rigs!I44>0,+Rally!$E$5,"") -> 
A45: 43 | B45: =IF(+Rigs!D45="","",Rigs!D45) ->  | C45: =IF(+Rigs!F45="","",Rigs!F45) ->  | D45: =IF(Rigs!H45>0,+Rally!$E$2*Rigs!H45,"") ->  | E45: =IF(SUM(Rigs!J45:M45)>0,((Rally!$I$6*Rigs!J45)+(Rally!$J$6*Rigs!K45)+(Rally!$K$6*Rigs!L45)+(Rally!$L$6*Rigs!M45)),"") ->  | F45: =IF(SUM(Rigs!N45:O45)>0,((Rally!$M$6*Rigs!N45)+(Rally!$N$6*Rigs!O45)),"") ->  | G45: =IF(Rigs!I45>0,(ROUND(SUM(Rally!$B$3:$B$59)/SUM(Rigs!$I$3:$I$100),2)*Rigs!I45)+Rigs!S45,"") ->  | I45: =IF(Rigs!P45<>0,+Rigs!P45,"") ->  | M45: =IF(Rigs!I45>0,+Rally!$E$5,"") -> 
A46: 44 | B46: =IF(+Rigs!D46="","",Rigs!D46) ->  | C46: =IF(+Rigs!F46="","",Rigs!F46) ->  | D46: =IF(Rigs!H46>0,+Rally!$E$2*Rigs!H46,"") ->  | E46: =IF(SUM(Rigs!J46:M46)>0,((Rally!$I$6*Rigs!J46)+(Rally!$J$6*Rigs!K46)+(Rally!$K$6*Rigs!L46)+(Rally!$L$6*Rigs!M46)),"") ->  | F46: =IF(SUM(Rigs!N46:O46)>0,((Rally!$M$6*Rigs!N46)+(Rally!$N$6*Rigs!O46)),"") ->  | G46: =IF(Rigs!I46>0,(ROUND(SUM(Rally!$B$3:$B$59)/SUM(Rigs!$I$3:$I$100),2)*Rigs!I46)+Rigs!S46,"") ->  | I46: =IF(Rigs!P46<>0,+Rigs!P46,"") ->  | M46: =IF(Rigs!I46>0,+Rally!$E$5,"") -> 
A47: 45 | B47: =IF(+Rigs!D47="","",Rigs!D47) ->  | C47: =IF(+Rigs!F47="","",Rigs!F47) ->  | D47: =IF(Rigs!H47>0,+Rally!$E$2*Rigs!H47,"") ->  | E47: =IF(SUM(Rigs!J47:M47)>0,((Rally!$I$6*Rigs!J47)+(Rally!$J$6*Rigs!K47)+(Rally!$K$6*Rigs!L47)+(Rally!$L$6*Rigs!M47)),"") ->  | F47: =IF(SUM(Rigs!N47:O47)>0,((Rally!$M$6*Rigs!N47)+(Rally!$N$6*Rigs!O47)),"") ->  | G47: =IF(Rigs!I47>0,(ROUND(SUM(Rally!$B$3:$B$59)/SUM(Rigs!$I$3:$I$100),2)*Rigs!I47)+Rigs!S47,"") ->  | I47: =IF(Rigs!P47<>0,+Rigs!P47,"") ->  | M47: =IF(Rigs!I47>0,+Rally!$E$5,"") -> 
A48: 46 | B48: =IF(+Rigs!D48="","",Rigs!D48) ->  | C48: =IF(+Rigs!F48="","",Rigs!F48) ->  | D48: =IF(Rigs!H48>0,+Rally!$E$2*Rigs!H48,"") ->  | E48: =IF(SUM(Rigs!J48:M48)>0,((Rally!$I$6*Rigs!J48)+(Rally!$J$6*Rigs!K48)+(Rally!$K$6*Rigs!L48)+(Rally!$L$6*Rigs!M48)),"") ->  | F48: =IF(SUM(Rigs!N48:O48)>0,((Rally!$M$6*Rigs!N48)+(Rally!$N$6*Rigs!O48)),"") ->  | G48: =IF(Rigs!I48>0,(ROUND(SUM(Rally!$B$3:$B$59)/SUM(Rigs!$I$3:$I$100),2)*Rigs!I48)+Rigs!S48,"") ->  | I48: =IF(Rigs!P48<>0,+Rigs!P48,"") ->  | M48: =IF(Rigs!I48>0,+Rally!$E$5,"") -> 
A49: 47 | B49: =IF(+Rigs!D49="","",Rigs!D49) ->  | C49: =IF(+Rigs!F49="","",Rigs!F49) ->  | D49: =IF(Rigs!H49>0,+Rally!$E$2*Rigs!H49,"") ->  | E49: =IF(SUM(Rigs!J49:M49)>0,((Rally!$I$6*Rigs!J49)+(Rally!$J$6*Rigs!K49)+(Rally!$K$6*Rigs!L49)+(Rally!$L$6*Rigs!M49)),"") ->  | F49: =IF(SUM(Rigs!N49:O49)>0,((Rally!$M$6*Rigs!N49)+(Rally!$N$6*Rigs!O49)),"") ->  | G49: =IF(Rigs!I49>0,(ROUND(SUM(Rally!$B$3:$B$59)/SUM(Rigs!$I$3:$I$100),2)*Rigs!I49)+Rigs!S49,"") ->  | I49: =IF(Rigs!P49<>0,+Rigs!P49,"") ->  | M49: =IF(Rigs!I49>0,+Rally!$E$5,"") -> 
A50: 48 | B50: =IF(+Rigs!D50="","",Rigs!D50) ->  | C50: =IF(+Rigs!F50="","",Rigs!F50) ->  | D50: =IF(Rigs!H50>0,+Rally!$E$2*Rigs!H50,"") ->  | E50: =IF(SUM(Rigs!J50:M50)>0,((Rally!$I$6*Rigs!J50)+(Rally!$J$6*Rigs!K50)+(Rally!$K$6*Rigs!L50)+(Rally!$L$6*Rigs!M50)),"") ->  | F50: =IF(SUM(Rigs!N50:O50)>0,((Rally!$M$6*Rigs!N50)+(Rally!$N$6*Rigs!O50)),"") ->  | G50: =IF(Rigs!I50>0,(ROUND(SUM(Rally!$B$3:$B$59)/SUM(Rigs!$I$3:$I$100),2)*Rigs!I50)+Rigs!S50,"") ->  | I50: =IF(Rigs!P50<>0,+Rigs!P50,"") ->  | M50: =IF(Rigs!I50>0,+Rally!$E$5,"") -> 
A51: 49 | B51: =IF(+Rigs!D51="","",Rigs!D51) ->  | C51: =IF(+Rigs!F51="","",Rigs!F51) ->  | D51: =IF(Rigs!H51>0,+Rally!$E$2*Rigs!H51,"") ->  | E51: =IF(SUM(Rigs!J51:M51)>0,((Rally!$I$6*Rigs!J51)+(Rally!$J$6*Rigs!K51)+(Rally!$K$6*Rigs!L51)+(Rally!$L$6*Rigs!M51)),"") ->  | F51: =IF(SUM(Rigs!N51:O51)>0,((Rally!$M$6*Rigs!N51)+(Rally!$N$6*Rigs!O51)),"") ->  | G51: =IF(Rigs!I51>0,(ROUND(SUM(Rally!$B$3:$B$59)/SUM(Rigs!$I$3:$I$100),2)*Rigs!I51)+Rigs!S51,"") ->  | I51: =IF(Rigs!P51<>0,+Rigs!P51,"") ->  | M51: =IF(Rigs!I51>0,+Rally!$E$5,"") -> 
A52: 50 | B52: =IF(+Rigs!D52="","",Rigs!D52) ->  | C52: =IF(+Rigs!F52="","",Rigs!F52) ->  | D52: =IF(Rigs!H52>0,+Rally!$E$2*Rigs!H52,"") ->  | E52: =IF(SUM(Rigs!J52:M52)>0,((Rally!$I$6*Rigs!J52)+(Rally!$J$6*Rigs!K52)+(Rally!$K$6*Rigs!L52)+(Rally!$L$6*Rigs!M52)),"") ->  | F52: =IF(SUM(Rigs!N52:O52)>0,((Rally!$M$6*Rigs!N52)+(Rally!$N$6*Rigs!O52)),"") ->  | G52: =IF(Rigs!I52>0,(ROUND(SUM(Rally!$B$3:$B$59)/SUM(Rigs!$I$3:$I$100),2)*Rigs!I52)+Rigs!S52,"") ->  | I52: =IF(Rigs!P52<>0,+Rigs!P52,"") ->  | M52: =IF(Rigs!I52>0,+Rally!$E$5,"") -> 
A53: 51 | B53: =IF(+Rigs!D53="","",Rigs!D53) ->  | C53: =IF(+Rigs!F53="","",Rigs!F53) ->  | D53: =IF(Rigs!H53>0,+Rally!$E$2*Rigs!H53,"") ->  | E53: =IF(SUM(Rigs!J53:M53)>0,((Rally!$I$6*Rigs!J53)+(Rally!$J$6*Rigs!K53)+(Rally!$K$6*Rigs!L53)+(Rally!$L$6*Rigs!M53)),"") ->  | F53: =IF(SUM(Rigs!N53:O53)>0,((Rally!$M$6*Rigs!N53)+(Rally!$N$6*Rigs!O53)),"") ->  | G53: =IF(Rigs!I53>0,(ROUND(SUM(Rally!$B$3:$B$59)/SUM(Rigs!$I$3:$I$100),2)*Rigs!I53)+Rigs!S53,"") ->  | I53: =IF(Rigs!P53<>0,+Rigs!P53,"") ->  | M53: =IF(Rigs!I53>0,+Rally!$E$5,"") -> 
A54: 52 | B54: =IF(+Rigs!D54="","",Rigs!D54) ->  | C54: =IF(+Rigs!F54="","",Rigs!F54) ->  | D54: =IF(Rigs!H54>0,+Rally!$E$2*Rigs!H54,"") ->  | E54: =IF(SUM(Rigs!J54:M54)>0,((Rally!$I$6*Rigs!J54)+(Rally!$J$6*Rigs!K54)+(Rally!$K$6*Rigs!L54)+(Rally!$L$6*Rigs!M54)),"") ->  | F54: =IF(SUM(Rigs!N54:O54)>0,((Rally!$M$6*Rigs!N54)+(Rally!$N$6*Rigs!O54)),"") ->  | G54: =IF(Rigs!I54>0,(ROUND(SUM(Rally!$B$3:$B$59)/SUM(Rigs!$I$3:$I$100),2)*Rigs!I54)+Rigs!S54,"") ->  | I54: =IF(Rigs!P54<>0,+Rigs!P54,"") ->  | M54: =IF(Rigs!I54>0,+Rally!$E$5,"") -> 
A55: 53 | B55: =IF(+Rigs!D55="","",Rigs!D55) ->  | C55: =IF(+Rigs!F55="","",Rigs!F55) ->  | D55: =IF(Rigs!H55>0,+Rally!$E$2*Rigs!H55,"") ->  | E55: =IF(SUM(Rigs!J55:M55)>0,((Rally!$I$6*Rigs!J55)+(Rally!$J$6*Rigs!K55)+(Rally!$K$6*Rigs!L55)+(Rally!$L$6*Rigs!M55)),"") ->  | F55: =IF(SUM(Rigs!N55:O55)>0,((Rally!$M$6*Rigs!N55)+(Rally!$N$6*Rigs!O55)),"") ->  | G55: =IF(Rigs!I55>0,(ROUND(SUM(Rally!$B$3:$B$59)/SUM(Rigs!$I$3:$I$100),2)*Rigs!I55)+Rigs!S55,"") ->  | I55: =IF(Rigs!P55<>0,+Rigs!P55,"") ->  | M55: =IF(Rigs!I55>0,+Rally!$E$5,"") -> 
A56: 54 | B56: =IF(+Rigs!D56="","",Rigs!D56) ->  | C56: =IF(+Rigs!F56="","",Rigs!F56) ->  | D56: =IF(Rigs!H56>0,+Rally!$E$2*Rigs!H56,"") ->  | E56: =IF(SUM(Rigs!J56:M56)>0,((Rally!$I$6*Rigs!J56)+(Rally!$J$6*Rigs!K56)+(Rally!$K$6*Rigs!L56)+(Rally!$L$6*Rigs!M56)),"") ->  | F56: =IF(SUM(Rigs!N56:O56)>0,((Rally!$M$6*Rigs!N56)+(Rally!$N$6*Rigs!O56)),"") ->  | G56: =IF(Rigs!I56>0,(ROUND(SUM(Rally!$B$3:$B$59)/SUM(Rigs!$I$3:$I$100),2)*Rigs!I56)+Rigs!S56,"") ->  | I56: =IF(Rigs!P56<>0,+Rigs!P56,"") ->  | M56: =IF(Rigs!I56>0,+Rally!$E$5,"") -> 
A57: 55 | B57: =IF(+Rigs!D57="","",Rigs!D57) ->  | C57: =IF(+Rigs!F57="","",Rigs!F57) ->  | D57: =IF(Rigs!H57>0,+Rally!$E$2*Rigs!H57,"") ->  | E57: =IF(SUM(Rigs!J57:M57)>0,((Rally!$I$6*Rigs!J57)+(Rally!$J$6*Rigs!K57)+(Rally!$K$6*Rigs!L57)+(Rally!$L$6*Rigs!M57)),"") ->  | F57: =IF(SUM(Rigs!N57:O57)>0,((Rally!$M$6*Rigs!N57)+(Rally!$N$6*Rigs!O57)),"") ->  | G57: =IF(Rigs!I57>0,(ROUND(SUM(Rally!$B$3:$B$59)/SUM(Rigs!$I$3:$I$100),2)*Rigs!I57)+Rigs!S57,"") ->  | I57: =IF(Rigs!P57<>0,+Rigs!P57,"") ->  | M57: =IF(Rigs!I57>0,+Rally!$E$5,"") -> 
A58: 56 | B58: =IF(+Rigs!D58="","",Rigs!D58) ->  | C58: =IF(+Rigs!F58="","",Rigs!F58) ->  | D58: =IF(Rigs!H58>0,+Rally!$E$2*Rigs!H58,"") ->  | E58: =IF(SUM(Rigs!J58:M58)>0,((Rally!$I$6*Rigs!J58)+(Rally!$J$6*Rigs!K58)+(Rally!$K$6*Rigs!L58)+(Rally!$L$6*Rigs!M58)),"") ->  | F58: =IF(SUM(Rigs!N58:O58)>0,((Rally!$M$6*Rigs!N58)+(Rally!$N$6*Rigs!O58)),"") ->  | G58: =IF(Rigs!I58>0,(ROUND(SUM(Rally!$B$3:$B$59)/SUM(Rigs!$I$3:$I$100),2)*Rigs!I58)+Rigs!S58,"") ->  | I58: =IF(Rigs!P58<>0,+Rigs!P58,"") ->  | M58: =IF(Rigs!I58>0,+Rally!$E$5,"") -> 
A59: 57 | B59: =IF(+Rigs!D59="","",Rigs!D59) ->  | C59: =IF(+Rigs!F59="","",Rigs!F59) ->  | D59: =IF(Rigs!H59>0,+Rally!$E$2*Rigs!H59,"") ->  | E59: =IF(SUM(Rigs!J59:M59)>0,((Rally!$I$6*Rigs!J59)+(Rally!$J$6*Rigs!K59)+(Rally!$K$6*Rigs!L59)+(Rally!$L$6*Rigs!M59)),"") ->  | F59: =IF(SUM(Rigs!N59:O59)>0,((Rally!$M$6*Rigs!N59)+(Rally!$N$6*Rigs!O59)),"") ->  | G59: =IF(Rigs!I59>0,(ROUND(SUM(Rally!$B$3:$B$59)/SUM(Rigs!$I$3:$I$100),2)*Rigs!I59)+Rigs!S59,"") ->  | I59: =IF(Rigs!P59<>0,+Rigs!P59,"") ->  | M59: =IF(Rigs!I59>0,+Rally!$E$5,"") -> 
A60: 58 | B60: =IF(+Rigs!D60="","",Rigs!D60) ->  | C60: =IF(+Rigs!F60="","",Rigs!F60) ->  | D60: =IF(Rigs!H60>0,+Rally!$E$2*Rigs!H60,"") ->  | E60: =IF(SUM(Rigs!J60:M60)>0,((Rally!$I$6*Rigs!J60)+(Rally!$J$6*Rigs!K60)+(Rally!$K$6*Rigs!L60)+(Rally!$L$6*Rigs!M60)),"") ->  | F60: =IF(SUM(Rigs!N60:O60)>0,((Rally!$M$6*Rigs!N60)+(Rally!$N$6*Rigs!O60)),"") ->  | G60: =IF(Rigs!I60>0,(ROUND(SUM(Rally!$B$3:$B$59)/SUM(Rigs!$I$3:$I$100),2)*Rigs!I60)+Rigs!S60,"") ->  | I60: =IF(Rigs!P60<>0,+Rigs!P60,"") ->  | M60: =IF(Rigs!I60>0,+Rally!$E$5,"") -> 
A61: 59 | B61: =IF(+Rigs!D61="","",Rigs!D61) ->  | C61: =IF(+Rigs!F61="","",Rigs!F61) ->  | D61: =IF(Rigs!H61>0,+Rally!$E$2*Rigs!H61,"") ->  | E61: =IF(SUM(Rigs!J61:M61)>0,((Rally!$I$6*Rigs!J61)+(Rally!$J$6*Rigs!K61)+(Rally!$K$6*Rigs!L61)+(Rally!$L$6*Rigs!M61)),"") ->  | F61: =IF(SUM(Rigs!N61:O61)>0,((Rally!$M$6*Rigs!N61)+(Rally!$N$6*Rigs!O61)),"") ->  | G61: =IF(Rigs!I61>0,(ROUND(SUM(Rally!$B$3:$B$59)/SUM(Rigs!$I$3:$I$100),2)*Rigs!I61)+Rigs!S61,"") ->  | I61: =IF(Rigs!P61<>0,+Rigs!P61,"") ->  | M61: =IF(Rigs!I61>0,+Rally!$E$5,"") -> 
A62: 60 | B62: =IF(+Rigs!D62="","",Rigs!D62) ->  | C62: =IF(+Rigs!F62="","",Rigs!F62) ->  | D62: =IF(Rigs!H62>0,+Rally!$E$2*Rigs!H62,"") ->  | E62: =IF(SUM(Rigs!J62:M62)>0,((Rally!$I$6*Rigs!J62)+(Rally!$J$6*Rigs!K62)+(Rally!$K$6*Rigs!L62)+(Rally!$L$6*Rigs!M62)),"") ->  | F62: =IF(SUM(Rigs!N62:O62)>0,((Rally!$M$6*Rigs!N62)+(Rally!$N$6*Rigs!O62)),"") ->  | G62: =IF(Rigs!I62>0,(ROUND(SUM(Rally!$B$3:$B$59)/SUM(Rigs!$I$3:$I$100),2)*Rigs!I62)+Rigs!S62,"") ->  | I62: =IF(Rigs!P62<>0,+Rigs!P62,"") ->  | M62: =IF(Rigs!I62>0,+Rally!$E$5,"") -> 
A63: 61 | B63: =IF(+Rigs!D63="","",Rigs!D63) ->  | C63: =IF(+Rigs!F63="","",Rigs!F63) ->  | D63: =IF(Rigs!H63>0,+Rally!$E$2*Rigs!H63,"") ->  | E63: =IF(SUM(Rigs!J63:M63)>0,((Rally!$I$6*Rigs!J63)+(Rally!$J$6*Rigs!K63)+(Rally!$K$6*Rigs!L63)+(Rally!$L$6*Rigs!M63)),"") ->  | F63: =IF(SUM(Rigs!N63:O63)>0,((Rally!$M$6*Rigs!N63)+(Rally!$N$6*Rigs!O63)),"") ->  | G63: =IF(Rigs!I63>0,(ROUND(SUM(Rally!$B$3:$B$59)/SUM(Rigs!$I$3:$I$100),2)*Rigs!I63)+Rigs!S63,"") ->  | I63: =IF(Rigs!P63<>0,+Rigs!P63,"") ->  | M63: =IF(Rigs!I63>0,+Rally!$E$5,"") -> 
A64: 62 | B64: =IF(+Rigs!D64="","",Rigs!D64) ->  | C64: =IF(+Rigs!F64="","",Rigs!F64) ->  | D64: =IF(Rigs!H64>0,+Rally!$E$2*Rigs!H64,"") ->  | E64: =IF(SUM(Rigs!J64:M64)>0,((Rally!$I$6*Rigs!J64)+(Rally!$J$6*Rigs!K64)+(Rally!$K$6*Rigs!L64)+(Rally!$L$6*Rigs!M64)),"") ->  | F64: =IF(SUM(Rigs!N64:O64)>0,((Rally!$M$6*Rigs!N64)+(Rally!$N$6*Rigs!O64)),"") ->  | G64: =IF(Rigs!I64>0,(ROUND(SUM(Rally!$B$3:$B$59)/SUM(Rigs!$I$3:$I$100),2)*Rigs!I64)+Rigs!S64,"") ->  | I64: =IF(Rigs!P64<>0,+Rigs!P64,"") ->  | M64: =IF(Rigs!I64>0,+Rally!$E$5,"") -> 
A65: 63 | B65: =IF(+Rigs!D65="","",Rigs!D65) ->  | C65: =IF(+Rigs!F65="","",Rigs!F65) ->  | D65: =IF(Rigs!H65>0,+Rally!$E$2*Rigs!H65,"") ->  | E65: =IF(SUM(Rigs!J65:M65)>0,((Rally!$I$6*Rigs!J65)+(Rally!$J$6*Rigs!K65)+(Rally!$K$6*Rigs!L65)+(Rally!$L$6*Rigs!M65)),"") ->  | F65: =IF(SUM(Rigs!N65:O65)>0,((Rally!$M$6*Rigs!N65)+(Rally!$N$6*Rigs!O65)),"") ->  | G65: =IF(Rigs!I65>0,(ROUND(SUM(Rally!$B$3:$B$59)/SUM(Rigs!$I$3:$I$100),2)*Rigs!I65)+Rigs!S65,"") ->  | I65: =IF(Rigs!P65<>0,+Rigs!P65,"") ->  | M65: =IF(Rigs!I65>0,+Rally!$E$5,"") -> 
A66: 64 | B66: =IF(+Rigs!D66="","",Rigs!D66) ->  | C66: =IF(+Rigs!F66="","",Rigs!F66) ->  | D66: =IF(Rigs!H66>0,+Rally!$E$2*Rigs!H66,"") ->  | E66: =IF(SUM(Rigs!J66:M66)>0,((Rally!$I$6*Rigs!J66)+(Rally!$J$6*Rigs!K66)+(Rally!$K$6*Rigs!L66)+(Rally!$L$6*Rigs!M66)),"") ->  | F66: =IF(SUM(Rigs!N66:O66)>0,((Rally!$M$6*Rigs!N66)+(Rally!$N$6*Rigs!O66)),"") ->  | G66: =IF(Rigs!I66>0,(ROUND(SUM(Rally!$B$3:$B$59)/SUM(Rigs!$I$3:$I$100),2)*Rigs!I66)+Rigs!S66,"") ->  | I66: =IF(Rigs!P66<>0,+Rigs!P66,"") ->  | M66: =IF(Rigs!I66>0,+Rally!$E$5,"") -> 
A67: 65 | B67: =IF(+Rigs!D67="","",Rigs!D67) ->  | C67: =IF(+Rigs!F67="","",Rigs!F67) ->  | D67: =IF(Rigs!H67>0,+Rally!$E$2*Rigs!H67,"") ->  | E67: =IF(SUM(Rigs!J67:M67)>0,((Rally!$I$6*Rigs!J67)+(Rally!$J$6*Rigs!K67)+(Rally!$K$6*Rigs!L67)+(Rally!$L$6*Rigs!M67)),"") ->  | F67: =IF(SUM(Rigs!N67:O67)>0,((Rally!$M$6*Rigs!N67)+(Rally!$N$6*Rigs!O67)),"") ->  | G67: =IF(Rigs!I67>0,(ROUND(SUM(Rally!$B$3:$B$59)/SUM(Rigs!$I$3:$I$100),2)*Rigs!I67)+Rigs!S67,"") ->  | I67: =IF(Rigs!P67<>0,+Rigs!P67,"") ->  | M67: =IF(Rigs!I67>0,+Rally!$E$5,"") -> 
A68: =A67+1 -> 66 | B68: =IF(+Rigs!D68="","",Rigs!D68) ->  | C68: =IF(+Rigs!F68="","",Rigs!F68) ->  | D68: =IF(Rigs!H68>0,+Rally!$E$2*Rigs!H68,"") ->  | E68: =IF(SUM(Rigs!J68:M68)>0,((Rally!$I$6*Rigs!J68)+(Rally!$J$6*Rigs!K68)+(Rally!$K$6*Rigs!L68)+(Rally!$L$6*Rigs!M68)),"") ->  | F68: =IF(SUM(Rigs!N68:O68)>0,((Rally!$M$6*Rigs!N68)+(Rally!$N$6*Rigs!O68)),"") ->  | G68: =IF(Rigs!I68>0,(ROUND(SUM(Rally!$B$3:$B$59)/SUM(Rigs!$I$3:$I$100),2)*Rigs!I68)+Rigs!S68,"") ->  | H68: =IF(SUM(D68:G68)<>0,SUM(D68:G68)+IF(SUM(M68:M68)>0,M68,0),"") ->  | I68: =IF(Rigs!P68<>0,+Rigs!P68,"") ->  | J68: =+IF(SUM(D68:G68)<>0,IF(SUM(I68:I68)>0,ROUNDUP(H68-I68,0),ROUNDUP(H68,0)),"") ->  | M68: =IF(Rigs!I68>0,+Rally!$E$5,"") -> 
A69: 67 | B69: =IF(+Rigs!D69="","",Rigs!D69) ->  | C69: =IF(+Rigs!F69="","",Rigs!F69) ->  | D69: =IF(Rigs!H69>0,+Rally!$E$2*Rigs!H69,"") ->  | E69: =IF(SUM(Rigs!J69:M69)>0,((Rally!$I$6*Rigs!J69)+(Rally!$J$6*Rigs!K69)+(Rally!$K$6*Rigs!L69)+(Rally!$L$6*Rigs!M69)),"") ->  | F69: =IF(SUM(Rigs!N69:O69)>0,((Rally!$M$6*Rigs!N69)+(Rally!$N$6*Rigs!O69)),"") ->  | G69: =IF(Rigs!I69>0,(ROUND(SUM(Rally!$B$3:$B$59)/SUM(Rigs!$I$3:$I$100),2)*Rigs!I69)+Rigs!S69,"") ->  | I69: =IF(Rigs!P69<>0,+Rigs!P69,"") ->  | M69: =IF(Rigs!I69>0,+Rally!$E$5,"") -> 
A70: 68 | B70: =IF(+Rigs!D70="","",Rigs!D70) ->  | C70: =IF(+Rigs!F70="","",Rigs!F70) ->  | D70: =IF(Rigs!H70>0,+Rally!$E$2*Rigs!H70,"") ->  | E70: =IF(SUM(Rigs!J70:M70)>0,((Rally!$I$6*Rigs!J70)+(Rally!$J$6*Rigs!K70)+(Rally!$K$6*Rigs!L70)+(Rally!$L$6*Rigs!M70)),"") ->  | F70: =IF(SUM(Rigs!N70:O70)>0,((Rally!$M$6*Rigs!N70)+(Rally!$N$6*Rigs!O70)),"") ->  | G70: =IF(Rigs!I70>0,(ROUND(SUM(Rally!$B$3:$B$59)/SUM(Rigs!$I$3:$I$100),2)*Rigs!I70)+Rigs!S70,"") ->  | I70: =IF(Rigs!P70<>0,+Rigs!P70,"") ->  | M70: =IF(Rigs!I70>0,+Rally!$E$5,"") -> 
A71: 69 | B71: =IF(+Rigs!D71="","",Rigs!D71) ->  | C71: =IF(+Rigs!F71="","",Rigs!F71) ->  | D71: =IF(Rigs!H71>0,+Rally!$E$2*Rigs!H71,"") ->  | E71: =IF(SUM(Rigs!J71:M71)>0,((Rally!$I$6*Rigs!J71)+(Rally!$J$6*Rigs!K71)+(Rally!$K$6*Rigs!L71)+(Rally!$L$6*Rigs!M71)),"") ->  | F71: =IF(SUM(Rigs!N71:O71)>0,((Rally!$M$6*Rigs!N71)+(Rally!$N$6*Rigs!O71)),"") ->  | G71: =IF(Rigs!I71>0,(ROUND(SUM(Rally!$B$3:$B$59)/SUM(Rigs!$I$3:$I$100),2)*Rigs!I71)+Rigs!S71,"") ->  | I71: =IF(Rigs!P71<>0,+Rigs!P71,"") ->  | M71: =IF(Rigs!I71>0,+Rally!$E$5,"") -> 
A72: 70 | B72: =IF(+Rigs!D72="","",Rigs!D72) ->  | C72: =IF(+Rigs!F72="","",Rigs!F72) ->  | D72: =IF(Rigs!H72>0,+Rally!$E$2*Rigs!H72,"") ->  | E72: =IF(SUM(Rigs!J72:M72)>0,((Rally!$I$6*Rigs!J72)+(Rally!$J$6*Rigs!K72)+(Rally!$K$6*Rigs!L72)+(Rally!$L$6*Rigs!M72)),"") ->  | F72: =IF(SUM(Rigs!N72:O72)>0,((Rally!$M$6*Rigs!N72)+(Rally!$N$6*Rigs!O72)),"") ->  | G72: =IF(Rigs!I72>0,(ROUND(SUM(Rally!$B$3:$B$59)/SUM(Rigs!$I$3:$I$100),2)*Rigs!I72)+Rigs!S72,"") ->  | I72: =IF(Rigs!P72<>0,+Rigs!P72,"") ->  | M72: =IF(Rigs!I72>0,+Rally!$E$5,"") -> 
A73: 71 | B73: =IF(+Rigs!D73="","",Rigs!D73) ->  | C73: =IF(+Rigs!F73="","",Rigs!F73) ->  | D73: =IF(Rigs!H73>0,+Rally!$E$2*Rigs!H73,"") ->  | E73: =IF(SUM(Rigs!J73:M73)>0,((Rally!$I$6*Rigs!J73)+(Rally!$J$6*Rigs!K73)+(Rally!$K$6*Rigs!L73)+(Rally!$L$6*Rigs!M73)),"") ->  | F73: =IF(SUM(Rigs!N73:O73)>0,((Rally!$M$6*Rigs!N73)+(Rally!$N$6*Rigs!O73)),"") ->  | G73: =IF(Rigs!I73>0,(ROUND(SUM(Rally!$B$3:$B$59)/SUM(Rigs!$I$3:$I$100),2)*Rigs!I73)+Rigs!S73,"") ->  | I73: =IF(Rigs!P73<>0,+Rigs!P73,"") ->  | M73: =IF(Rigs!I73>0,+Rally!$E$5,"") -> 
A74: 72 | B74: =IF(+Rigs!D74="","",Rigs!D74) ->  | C74: =IF(+Rigs!F74="","",Rigs!F74) ->  | D74: =IF(Rigs!H74>0,+Rally!$E$2*Rigs!H74,"") ->  | E74: =IF(SUM(Rigs!J74:M74)>0,((Rally!$I$6*Rigs!J74)+(Rally!$J$6*Rigs!K74)+(Rally!$K$6*Rigs!L74)+(Rally!$L$6*Rigs!M74)),"") ->  | F74: =IF(SUM(Rigs!N74:O74)>0,((Rally!$M$6*Rigs!N74)+(Rally!$N$6*Rigs!O74)),"") ->  | G74: =IF(Rigs!I74>0,(ROUND(SUM(Rally!$B$3:$B$59)/SUM(Rigs!$I$3:$I$100),2)*Rigs!I74)+Rigs!S74,"") ->  | I74: =IF(Rigs!P74<>0,+Rigs!P74,"") ->  | M74: =IF(Rigs!I74>0,+Rally!$E$5,"") -> 
A75: 73 | B75: =IF(+Rigs!D75="","",Rigs!D75) ->  | C75: =IF(+Rigs!F75="","",Rigs!F75) ->  | D75: =IF(Rigs!H75>0,+Rally!$E$2*Rigs!H75,"") ->  | E75: =IF(SUM(Rigs!J75:M75)>0,((Rally!$I$6*Rigs!J75)+(Rally!$J$6*Rigs!K75)+(Rally!$K$6*Rigs!L75)+(Rally!$L$6*Rigs!M75)),"") ->  | F75: =IF(SUM(Rigs!N75:O75)>0,((Rally!$M$6*Rigs!N75)+(Rally!$N$6*Rigs!O75)),"") ->  | G75: =IF(Rigs!I75>0,(ROUND(SUM(Rally!$B$3:$B$59)/SUM(Rigs!$I$3:$I$100),2)*Rigs!I75)+Rigs!S75,"") ->  | I75: =IF(Rigs!P75<>0,+Rigs!P75,"") ->  | M75: =IF(Rigs!I75>0,+Rally!$E$5,"") -> 
A76: 74 | B76: =IF(+Rigs!D76="","",Rigs!D76) ->  | C76: =IF(+Rigs!F76="","",Rigs!F76) ->  | D76: =IF(Rigs!H76>0,+Rally!$E$2*Rigs!H76,"") ->  | E76: =IF(SUM(Rigs!J76:M76)>0,((Rally!$I$6*Rigs!J76)+(Rally!$J$6*Rigs!K76)+(Rally!$K$6*Rigs!L76)+(Rally!$L$6*Rigs!M76)),"") ->  | F76: =IF(SUM(Rigs!N76:O76)>0,((Rally!$M$6*Rigs!N76)+(Rally!$N$6*Rigs!O76)),"") ->  | G76: =IF(Rigs!I76>0,(ROUND(SUM(Rally!$B$3:$B$59)/SUM(Rigs!$I$3:$I$100),2)*Rigs!I76)+Rigs!S76,"") ->  | I76: =IF(Rigs!P76<>0,+Rigs!P76,"") ->  | M76: =IF(Rigs!I76>0,+Rally!$E$5,"") -> 
A77: 75 | B77: =IF(+Rigs!D77="","",Rigs!D77) ->  | C77: =IF(+Rigs!F77="","",Rigs!F77) ->  | D77: =IF(Rigs!H77>0,+Rally!$E$2*Rigs!H77,"") ->  | E77: =IF(SUM(Rigs!J77:M77)>0,((Rally!$I$6*Rigs!J77)+(Rally!$J$6*Rigs!K77)+(Rally!$K$6*Rigs!L77)+(Rally!$L$6*Rigs!M77)),"") ->  | F77: =IF(SUM(Rigs!N77:O77)>0,((Rally!$M$6*Rigs!N77)+(Rally!$N$6*Rigs!O77)),"") ->  | G77: =IF(Rigs!I77>0,(ROUND(SUM(Rally!$B$3:$B$59)/SUM(Rigs!$I$3:$I$100),2)*Rigs!I77)+Rigs!S77,"") ->  | I77: =IF(Rigs!P77<>0,+Rigs!P77,"") ->  | M77: =IF(Rigs!I77>0,+Rally!$E$5,"") -> 
A78: 76 | B78: =IF(+Rigs!D78="","",Rigs!D78) ->  | C78: =IF(+Rigs!F78="","",Rigs!F78) ->  | D78: =IF(Rigs!H78>0,+Rally!$E$2*Rigs!H78,"") ->  | E78: =IF(SUM(Rigs!J78:M78)>0,((Rally!$I$6*Rigs!J78)+(Rally!$J$6*Rigs!K78)+(Rally!$K$6*Rigs!L78)+(Rally!$L$6*Rigs!M78)),"") ->  | F78: =IF(SUM(Rigs!N78:O78)>0,((Rally!$M$6*Rigs!N78)+(Rally!$N$6*Rigs!O78)),"") ->  | G78: =IF(Rigs!I78>0,(ROUND(SUM(Rally!$B$3:$B$59)/SUM(Rigs!$I$3:$I$100),2)*Rigs!I78)+Rigs!S78,"") ->  | I78: =IF(Rigs!P78<>0,+Rigs!P78,"") ->  | M78: =IF(Rigs!I78>0,+Rally!$E$5,"") -> 
A79: 77 | B79: =IF(+Rigs!D79="","",Rigs!D79) ->  | C79: =IF(+Rigs!F79="","",Rigs!F79) ->  | D79: =IF(Rigs!H79>0,+Rally!$E$2*Rigs!H79,"") ->  | E79: =IF(SUM(Rigs!J79:M79)>0,((Rally!$I$6*Rigs!J79)+(Rally!$J$6*Rigs!K79)+(Rally!$K$6*Rigs!L79)+(Rally!$L$6*Rigs!M79)),"") ->  | F79: =IF(SUM(Rigs!N79:O79)>0,((Rally!$M$6*Rigs!N79)+(Rally!$N$6*Rigs!O79)),"") ->  | G79: =IF(Rigs!I79>0,(ROUND(SUM(Rally!$B$3:$B$59)/SUM(Rigs!$I$3:$I$100),2)*Rigs!I79)+Rigs!S79,"") ->  | I79: =IF(Rigs!P79<>0,+Rigs!P79,"") ->  | M79: =IF(Rigs!I79>0,+Rally!$E$5,"") -> 
A80: 78 | B80: =IF(+Rigs!D80="","",Rigs!D80) ->  | C80: =IF(+Rigs!F80="","",Rigs!F80) ->  | D80: =IF(Rigs!H80>0,+Rally!$E$2*Rigs!H80,"") ->  | E80: =IF(SUM(Rigs!J80:M80)>0,((Rally!$I$6*Rigs!J80)+(Rally!$J$6*Rigs!K80)+(Rally!$K$6*Rigs!L80)+(Rally!$L$6*Rigs!M80)),"") ->  | F80: =IF(SUM(Rigs!N80:O80)>0,((Rally!$M$6*Rigs!N80)+(Rally!$N$6*Rigs!O80)),"") ->  | G80: =IF(Rigs!I80>0,(ROUND(SUM(Rally!$B$3:$B$59)/SUM(Rigs!$I$3:$I$100),2)*Rigs!I80)+Rigs!S80,"") ->  | I80: =IF(Rigs!P80<>0,+Rigs!P80,"") ->  | M80: =IF(Rigs!I80>0,+Rally!$E$5,"") -> 
A81: 79 | B81: =IF(+Rigs!D81="","",Rigs!D81) ->  | C81: =IF(+Rigs!F81="","",Rigs!F81) ->  | D81: =IF(Rigs!H81>0,+Rally!$E$2*Rigs!H81,"") ->  | E81: =IF(SUM(Rigs!J81:M81)>0,((Rally!$I$6*Rigs!J81)+(Rally!$J$6*Rigs!K81)+(Rally!$K$6*Rigs!L81)+(Rally!$L$6*Rigs!M81)),"") ->  | F81: =IF(SUM(Rigs!N81:O81)>0,((Rally!$M$6*Rigs!N81)+(Rally!$N$6*Rigs!O81)),"") ->  | G81: =IF(Rigs!I81>0,(ROUND(SUM(Rally!$B$3:$B$59)/SUM(Rigs!$I$3:$I$100),2)*Rigs!I81)+Rigs!S81,"") ->  | I81: =IF(Rigs!P81<>0,+Rigs!P81,"") ->  | M81: =IF(Rigs!I81>0,+Rally!$E$5,"") -> 
A82: 80 | B82: =IF(+Rigs!D82="","",Rigs!D82) ->  | C82: =IF(+Rigs!F82="","",Rigs!F82) ->  | D82: =IF(Rigs!H82>0,+Rally!$E$2*Rigs!H82,"") ->  | E82: =IF(SUM(Rigs!J82:M82)>0,((Rally!$I$6*Rigs!J82)+(Rally!$J$6*Rigs!K82)+(Rally!$K$6*Rigs!L82)+(Rally!$L$6*Rigs!M82)),"") ->  | F82: =IF(SUM(Rigs!N82:O82)>0,((Rally!$M$6*Rigs!N82)+(Rally!$N$6*Rigs!O82)),"") ->  | G82: =IF(Rigs!I82>0,(ROUND(SUM(Rally!$B$3:$B$59)/SUM(Rigs!$I$3:$I$100),2)*Rigs!I82)+Rigs!S82,"") ->  | I82: =IF(Rigs!P82<>0,+Rigs!P82,"") ->  | M82: =IF(Rigs!I82>0,+Rally!$E$5,"") -> 
A83: 81 | B83: =IF(+Rigs!D83="","",Rigs!D83) ->  | C83: =IF(+Rigs!F83="","",Rigs!F83) ->  | D83: =IF(Rigs!H83>0,+Rally!$E$2*Rigs!H83,"") ->  | E83: =IF(SUM(Rigs!J83:M83)>0,((Rally!$I$6*Rigs!J83)+(Rally!$J$6*Rigs!K83)+(Rally!$K$6*Rigs!L83)+(Rally!$L$6*Rigs!M83)),"") ->  | F83: =IF(SUM(Rigs!N83:O83)>0,((Rally!$M$6*Rigs!N83)+(Rally!$N$6*Rigs!O83)),"") ->  | G83: =IF(Rigs!I83>0,(ROUND(SUM(Rally!$B$3:$B$59)/SUM(Rigs!$I$3:$I$100),2)*Rigs!I83)+Rigs!S83,"") ->  | I83: =IF(Rigs!P83<>0,+Rigs!P83,"") ->  | M83: =IF(Rigs!I83>0,+Rally!$E$5,"") -> 
A84: 82 | B84: =IF(+Rigs!D84="","",Rigs!D84) ->  | C84: =IF(+Rigs!F84="","",Rigs!F84) ->  | D84: =IF(Rigs!H84>0,+Rally!$E$2*Rigs!H84,"") ->  | E84: =IF(SUM(Rigs!J84:M84)>0,((Rally!$I$6*Rigs!J84)+(Rally!$J$6*Rigs!K84)+(Rally!$K$6*Rigs!L84)+(Rally!$L$6*Rigs!M84)),"") ->  | F84: =IF(SUM(Rigs!N84:O84)>0,((Rally!$M$6*Rigs!N84)+(Rally!$N$6*Rigs!O84)),"") ->  | G84: =IF(Rigs!I84>0,(ROUND(SUM(Rally!$B$3:$B$59)/SUM(Rigs!$I$3:$I$100),2)*Rigs!I84)+Rigs!S84,"") ->  | I84: =IF(Rigs!P84<>0,+Rigs!P84,"") ->  | M84: =IF(Rigs!I84>0,+Rally!$E$5,"") -> 
A85: 83 | B85: =IF(+Rigs!D85="","",Rigs!D85) ->  | C85: =IF(+Rigs!F85="","",Rigs!F85) ->  | D85: =IF(Rigs!H85>0,+Rally!$E$2*Rigs!H85,"") ->  | E85: =IF(SUM(Rigs!J85:M85)>0,((Rally!$I$6*Rigs!J85)+(Rally!$J$6*Rigs!K85)+(Rally!$K$6*Rigs!L85)+(Rally!$L$6*Rigs!M85)),"") ->  | F85: =IF(SUM(Rigs!N85:O85)>0,((Rally!$M$6*Rigs!N85)+(Rally!$N$6*Rigs!O85)),"") ->  | G85: =IF(Rigs!I85>0,(ROUND(SUM(Rally!$B$3:$B$59)/SUM(Rigs!$I$3:$I$100),2)*Rigs!I85)+Rigs!S85,"") ->  | I85: =IF(Rigs!P85<>0,+Rigs!P85,"") ->  | M85: =IF(Rigs!I85>0,+Rally!$E$5,"") -> 
A86: 84 | B86: =IF(+Rigs!D86="","",Rigs!D86) ->  | C86: =IF(+Rigs!F86="","",Rigs!F86) ->  | D86: =IF(Rigs!H86>0,+Rally!$E$2*Rigs!H86,"") ->  | E86: =IF(SUM(Rigs!J86:M86)>0,((Rally!$I$6*Rigs!J86)+(Rally!$J$6*Rigs!K86)+(Rally!$K$6*Rigs!L86)+(Rally!$L$6*Rigs!M86)),"") ->  | F86: =IF(SUM(Rigs!N86:O86)>0,((Rally!$M$6*Rigs!N86)+(Rally!$N$6*Rigs!O86)),"") ->  | G86: =IF(Rigs!I86>0,(ROUND(SUM(Rally!$B$3:$B$59)/SUM(Rigs!$I$3:$I$100),2)*Rigs!I86)+Rigs!S86,"") ->  | I86: =IF(Rigs!P86<>0,+Rigs!P86,"") ->  | M86: =IF(Rigs!I86>0,+Rally!$E$5,"") -> 
A87: 85 | B87: =IF(+Rigs!D87="","",Rigs!D87) ->  | C87: =IF(+Rigs!F87="","",Rigs!F87) ->  | D87: =IF(Rigs!H87>0,+Rally!$E$2*Rigs!H87,"") ->  | E87: =IF(SUM(Rigs!J87:M87)>0,((Rally!$I$6*Rigs!J87)+(Rally!$J$6*Rigs!K87)+(Rally!$K$6*Rigs!L87)+(Rally!$L$6*Rigs!M87)),"") ->  | F87: =IF(SUM(Rigs!N87:O87)>0,((Rally!$M$6*Rigs!N87)+(Rally!$N$6*Rigs!O87)),"") ->  | G87: =IF(Rigs!I87>0,(ROUND(SUM(Rally!$B$3:$B$59)/SUM(Rigs!$I$3:$I$100),2)*Rigs!I87)+Rigs!S87,"") ->  | I87: =IF(Rigs!P87<>0,+Rigs!P87,"") ->  | M87: =IF(Rigs!I87>0,+Rally!$E$5,"") -> 
A88: 86 | B88: =IF(+Rigs!D88="","",Rigs!D88) ->  | C88: =IF(+Rigs!F88="","",Rigs!F88) ->  | D88: =IF(Rigs!H88>0,+Rally!$E$2*Rigs!H88,"") ->  | E88: =IF(SUM(Rigs!J88:M88)>0,((Rally!$I$6*Rigs!J88)+(Rally!$J$6*Rigs!K88)+(Rally!$K$6*Rigs!L88)+(Rally!$L$6*Rigs!M88)),"") ->  | F88: =IF(SUM(Rigs!N88:O88)>0,((Rally!$M$6*Rigs!N88)+(Rally!$N$6*Rigs!O88)),"") ->  | G88: =IF(Rigs!I88>0,(ROUND(SUM(Rally!$B$3:$B$59)/SUM(Rigs!$I$3:$I$100),2)*Rigs!I88)+Rigs!S88,"") ->  | I88: =IF(Rigs!P88<>0,+Rigs!P88,"") ->  | M88: =IF(Rigs!I88>0,+Rally!$E$5,"") -> 
A89: 87 | B89: =IF(+Rigs!D89="","",Rigs!D89) ->  | C89: =IF(+Rigs!F89="","",Rigs!F89) ->  | D89: =IF(Rigs!H89>0,+Rally!$E$2*Rigs!H89,"") ->  | E89: =IF(SUM(Rigs!J89:M89)>0,((Rally!$I$6*Rigs!J89)+(Rally!$J$6*Rigs!K89)+(Rally!$K$6*Rigs!L89)+(Rally!$L$6*Rigs!M89)),"") ->  | F89: =IF(SUM(Rigs!N89:O89)>0,((Rally!$M$6*Rigs!N89)+(Rally!$N$6*Rigs!O89)),"") ->  | G89: =IF(Rigs!I89>0,(ROUND(SUM(Rally!$B$3:$B$59)/SUM(Rigs!$I$3:$I$100),2)*Rigs!I89)+Rigs!S89,"") ->  | I89: =IF(Rigs!P89<>0,+Rigs!P89,"") ->  | M89: =IF(Rigs!I89>0,+Rally!$E$5,"") -> 
A90: 88 | B90: =IF(+Rigs!D90="","",Rigs!D90) ->  | C90: =IF(+Rigs!F90="","",Rigs!F90) ->  | D90: =IF(Rigs!H90>0,+Rally!$E$2*Rigs!H90,"") ->  | E90: =IF(SUM(Rigs!J90:M90)>0,((Rally!$I$6*Rigs!J90)+(Rally!$J$6*Rigs!K90)+(Rally!$K$6*Rigs!L90)+(Rally!$L$6*Rigs!M90)),"") ->  | F90: =IF(SUM(Rigs!N90:O90)>0,((Rally!$M$6*Rigs!N90)+(Rally!$N$6*Rigs!O90)),"") ->  | G90: =IF(Rigs!I90>0,(ROUND(SUM(Rally!$B$3:$B$59)/SUM(Rigs!$I$3:$I$100),2)*Rigs!I90)+Rigs!S90,"") ->  | I90: =IF(Rigs!P90<>0,+Rigs!P90,"") ->  | M90: =IF(Rigs!I90>0,+Rally!$E$5,"") -> 
A91: 89 | B91: =IF(+Rigs!D91="","",Rigs!D91) ->  | C91: =IF(+Rigs!F91="","",Rigs!F91) ->  | D91: =IF(Rigs!H91>0,+Rally!$E$2*Rigs!H91,"") ->  | E91: =IF(SUM(Rigs!J91:M91)>0,((Rally!$I$6*Rigs!J91)+(Rally!$J$6*Rigs!K91)+(Rally!$K$6*Rigs!L91)+(Rally!$L$6*Rigs!M91)),"") ->  | F91: =IF(SUM(Rigs!N91:O91)>0,((Rally!$M$6*Rigs!N91)+(Rally!$N$6*Rigs!O91)),"") ->  | G91: =IF(Rigs!I91>0,(ROUND(SUM(Rally!$B$3:$B$59)/SUM(Rigs!$I$3:$I$100),2)*Rigs!I91)+Rigs!S91,"") ->  | I91: =IF(Rigs!P91<>0,+Rigs!P91,"") ->  | M91: =IF(Rigs!I91>0,+Rally!$E$5,"") -> 
A92: 90 | B92: =IF(+Rigs!D92="","",Rigs!D92) ->  | C92: =IF(+Rigs!F92="","",Rigs!F92) ->  | D92: =IF(Rigs!H92>0,+Rally!$E$2*Rigs!H92,"") ->  | E92: =IF(SUM(Rigs!J92:M92)>0,((Rally!$I$6*Rigs!J92)+(Rally!$J$6*Rigs!K92)+(Rally!$K$6*Rigs!L92)+(Rally!$L$6*Rigs!M92)),"") ->  | F92: =IF(SUM(Rigs!N92:O92)>0,((Rally!$M$6*Rigs!N92)+(Rally!$N$6*Rigs!O92)),"") ->  | G92: =IF(Rigs!I92>0,(ROUND(SUM(Rally!$B$3:$B$59)/SUM(Rigs!$I$3:$I$100),2)*Rigs!I92)+Rigs!S92,"") ->  | I92: =IF(Rigs!P92<>0,+Rigs!P92,"") ->  | M92: =IF(Rigs!I92>0,+Rally!$E$5,"") -> 
A93: 91 | B93: =IF(+Rigs!D93="","",Rigs!D93) ->  | C93: =IF(+Rigs!F93="","",Rigs!F93) ->  | D93: =IF(Rigs!H93>0,+Rally!$E$2*Rigs!H93,"") ->  | E93: =IF(SUM(Rigs!J93:M93)>0,((Rally!$I$6*Rigs!J93)+(Rally!$J$6*Rigs!K93)+(Rally!$K$6*Rigs!L93)+(Rally!$L$6*Rigs!M93)),"") ->  | F93: =IF(SUM(Rigs!N93:O93)>0,((Rally!$M$6*Rigs!N93)+(Rally!$N$6*Rigs!O93)),"") ->  | G93: =IF(Rigs!I93>0,(ROUND(SUM(Rally!$B$3:$B$59)/SUM(Rigs!$I$3:$I$100),2)*Rigs!I93)+Rigs!S93,"") ->  | I93: =IF(Rigs!P93<>0,+Rigs!P93,"") ->  | M93: =IF(Rigs!I93>0,+Rally!$E$5,"") -> 
A94: 92 | B94: =IF(+Rigs!D94="","",Rigs!D94) ->  | C94: =IF(+Rigs!F94="","",Rigs!F94) ->  | D94: =IF(Rigs!H94>0,+Rally!$E$2*Rigs!H94,"") ->  | E94: =IF(SUM(Rigs!J94:M94)>0,((Rally!$I$6*Rigs!J94)+(Rally!$J$6*Rigs!K94)+(Rally!$K$6*Rigs!L94)+(Rally!$L$6*Rigs!M94)),"") ->  | F94: =IF(SUM(Rigs!N94:O94)>0,((Rally!$M$6*Rigs!N94)+(Rally!$N$6*Rigs!O94)),"") ->  | G94: =IF(Rigs!I94>0,(ROUND(SUM(Rally!$B$3:$B$59)/SUM(Rigs!$I$3:$I$100),2)*Rigs!I94)+Rigs!S94,"") ->  | I94: =IF(Rigs!P94<>0,+Rigs!P94,"") ->  | M94: =IF(Rigs!I94>0,+Rally!$E$5,"") -> 
A95: 93 | B95: =IF(+Rigs!D95="","",Rigs!D95) ->  | C95: =IF(+Rigs!F95="","",Rigs!F95) ->  | D95: =IF(Rigs!H95>0,+Rally!$E$2*Rigs!H95,"") ->  | E95: =IF(SUM(Rigs!J95:M95)>0,((Rally!$I$6*Rigs!J95)+(Rally!$J$6*Rigs!K95)+(Rally!$K$6*Rigs!L95)+(Rally!$L$6*Rigs!M95)),"") ->  | F95: =IF(SUM(Rigs!N95:O95)>0,((Rally!$M$6*Rigs!N95)+(Rally!$N$6*Rigs!O95)),"") ->  | G95: =IF(Rigs!I95>0,(ROUND(SUM(Rally!$B$3:$B$59)/SUM(Rigs!$I$3:$I$100),2)*Rigs!I95)+Rigs!S95,"") ->  | I95: =IF(Rigs!P95<>0,+Rigs!P95,"") ->  | M95: =IF(Rigs!I95>0,+Rally!$E$5,"") -> 
A96: 94 | B96: =IF(+Rigs!D96="","",Rigs!D96) ->  | C96: =IF(+Rigs!F96="","",Rigs!F96) ->  | D96: =IF(Rigs!H96>0,+Rally!$E$2*Rigs!H96,"") ->  | E96: =IF(SUM(Rigs!J96:M96)>0,((Rally!$I$6*Rigs!J96)+(Rally!$J$6*Rigs!K96)+(Rally!$K$6*Rigs!L96)+(Rally!$L$6*Rigs!M96)),"") ->  | F96: =IF(SUM(Rigs!N96:O96)>0,((Rally!$M$6*Rigs!N96)+(Rally!$N$6*Rigs!O96)),"") ->  | G96: =IF(Rigs!I96>0,(ROUND(SUM(Rally!$B$3:$B$59)/SUM(Rigs!$I$3:$I$100),2)*Rigs!I96)+Rigs!S96,"") ->  | I96: =IF(Rigs!P96<>0,+Rigs!P96,"") ->  | M96: =IF(Rigs!I96>0,+Rally!$E$5,"") -> 
A97: 95 | B97: =IF(+Rigs!D97="","",Rigs!D97) ->  | C97: =IF(+Rigs!F97="","",Rigs!F97) ->  | D97: =IF(Rigs!H97>0,+Rally!$E$2*Rigs!H97,"") ->  | E97: =IF(SUM(Rigs!J97:M97)>0,((Rally!$I$6*Rigs!J97)+(Rally!$J$6*Rigs!K97)+(Rally!$K$6*Rigs!L97)+(Rally!$L$6*Rigs!M97)),"") ->  | F97: =IF(SUM(Rigs!N97:O97)>0,((Rally!$M$6*Rigs!N97)+(Rally!$N$6*Rigs!O97)),"") ->  | G97: =IF(Rigs!I97>0,(ROUND(SUM(Rally!$B$3:$B$59)/SUM(Rigs!$I$3:$I$100),2)*Rigs!I97)+Rigs!S97,"") ->  | I97: =IF(Rigs!P97<>0,+Rigs!P97,"") ->  | M97: =IF(Rigs!I97>0,+Rally!$E$5,"") -> 
A98: 96 | B98: =IF(+Rigs!D98="","",Rigs!D98) ->  | C98: =IF(+Rigs!F98="","",Rigs!F98) ->  | D98: =IF(Rigs!H98>0,+Rally!$E$2*Rigs!H98,"") ->  | E98: =IF(SUM(Rigs!J98:M98)>0,((Rally!$I$6*Rigs!J98)+(Rally!$J$6*Rigs!K98)+(Rally!$K$6*Rigs!L98)+(Rally!$L$6*Rigs!M98)),"") ->  | F98: =IF(SUM(Rigs!N98:O98)>0,((Rally!$M$6*Rigs!N98)+(Rally!$N$6*Rigs!O98)),"") ->  | G98: =IF(Rigs!I98>0,(ROUND(SUM(Rally!$B$3:$B$59)/SUM(Rigs!$I$3:$I$100),2)*Rigs!I98)+Rigs!S98,"") ->  | I98: =IF(Rigs!P98<>0,+Rigs!P98,"") ->  | M98: =IF(Rigs!I98>0,+Rally!$E$5,"") -> 
A99: 97 | B99: =IF(+Rigs!D99="","",Rigs!D99) ->  | C99: =IF(+Rigs!F99="","",Rigs!F99) ->  | D99: =IF(Rigs!H99>0,+Rally!$E$2*Rigs!H99,"") ->  | E99: =IF(SUM(Rigs!J99:M99)>0,((Rally!$I$6*Rigs!J99)+(Rally!$J$6*Rigs!K99)+(Rally!$K$6*Rigs!L99)+(Rally!$L$6*Rigs!M99)),"") ->  | F99: =IF(SUM(Rigs!N99:O99)>0,((Rally!$M$6*Rigs!N99)+(Rally!$N$6*Rigs!O99)),"") ->  | G99: =IF(Rigs!I99>0,(ROUND(SUM(Rally!$B$3:$B$59)/SUM(Rigs!$I$3:$I$100),2)*Rigs!I99)+Rigs!S99,"") ->  | I99: =IF(Rigs!P99<>0,+Rigs!P99,"") ->  | M99: =IF(Rigs!I99>0,+Rally!$E$5,"") -> 
A100: 98 | B100: =IF(+Rigs!D100="","",Rigs!D100) ->  | C100: =IF(+Rigs!F100="","",Rigs!F100) ->  | D100: =IF(Rigs!H100>0,+Rally!$E$2*Rigs!H100,"") ->  | E100: =IF(SUM(Rigs!J100:M100)>0,((Rally!$I$6*Rigs!J100)+(Rally!$J$6*Rigs!K100)+(Rally!$K$6*Rigs!L100)+(Rally!$L$6*Rigs!M100)),"") ->  | F100: =IF(SUM(Rigs!N100:O100)>0,((Rally!$M$6*Rigs!N100)+(Rally!$N$6*Rigs!O100)),"") ->  | G100: =IF(Rigs!I100>0,(ROUND(SUM(Rally!$B$3:$B$59)/SUM(Rigs!$I$3:$I$100),2)*Rigs!I100)+Rigs!S100,"") ->  | I100: =IF(Rigs!P100<>0,+Rigs!P100,"") ->  | M100: =IF(Rigs!I100>0,+Rally!$E$5,"") -> 
A101: =A100+1 -> 99 | B101: =IF(+Rigs!D101="","",Rigs!D101) ->  | C101: =IF(+Rigs!F101="","",Rigs!F101) ->  | D101: =IF(Rigs!H101>0,+Rally!$E$2*Rigs!H101,"") ->  | E101: =IF(SUM(Rigs!J101:M101)>0,((Rally!$I$6*Rigs!J101)+(Rally!$J$6*Rigs!K101)+(Rally!$K$6*Rigs!L101)+(Rally!$L$6*Rigs!M101)),"") ->  | F101: =IF(SUM(Rigs!N101:O101)>0,((Rally!$M$6*Rigs!N101)+(Rally!$N$6*Rigs!O101)),"") ->  | G101: =IF(Rigs!I101>0,(ROUND(SUM(Rally!$B$3:$B$59)/SUM(Rigs!$I$3:$I$100),2)*Rigs!I101)+Rigs!S101,"") ->  | I101: =IF(Rigs!P101<>0,+Rigs!P101,"") ->  | M101: =IF(Rigs!I101>0,+Rally!$E$5,"") -> 

Sheet Sheet1
